Cogmind - Beta 13 @@@ ROGUE MODE // 2024.04.28 @ 21:39:31 Player: Terminus Result: Establishing 0b11! Performance ------------- Evolutions (9) 4500 Regions Visited (39) 7800 Robots Destroyed (1426) 7130 Value Destroyed (82096) 82096 Prototype IDs (293) 5860 Alien Tech Used (12) 2400 Bonus (128390) 128390 TOTAL SCORE: 238176 Bonus ------- Triggered High Security 2000 High Alert Combat Kills 68533 Follower Combat Kills 2713 Network Hubs Disabled 200 Met Data Miner 300 Used Data Conduit 3000 Met Imprinter 300 Built Enhanced Grunts 300 Met R17 at Cetus 500 Found Hidden Lab 3000 Met R17 at Research 2000 Pursued by Intercept 2000 Recovered Sigix Corpse 2000 Destroyed MAIN.C Guards 500 Met MAIN.C 5000 Destroyed MAIN.C Shell 5000 Destroyed MAIN.C 10000 Met Architect 300 Destroyed A8 300 Destroyed A6 400 Destroyed A5 500 Destroyed A4 700 Destroyed A3 800 Destroyed A2 1000 Destroyed Architect 15000 Win 3000 Friendly Fire -956 Cogmind --------- Core Integrity 610/1850 Matter 403/425 Energy 866/880 System Corruption 24% Temperature Cool (8) Movement Treading (250) Ox1 Location 0b11 Command Parts ------- > --- POWER (3) -------- Improved Quantum Reactor Zero-point Reactor Zero-point Reactor (fused) > --- PROPULSION (4) --- Armored Heavy Treads Armored Heavy Treads > --- UTILITY (11) ----- Huge Storage Unit Experimental Targeting Computer Experimental Core Analyzer Experimental Core Analyzer Improved Armor Integrity Analyzer Advanced Particle Accelerator Experimental Weapon Cycler (fused) SHELL Armor AEGIS Remote Shield > --- WEAPON (8) ------- Enhanced Quantum Rifle Enhanced Quantum Rifle Enhanced Quantum Rifle Enhanced Quantum Rifle Enhanced Quantum Rifle Enhanced Quantum Rifle Gatling Beam (fused) Hypervelocity Multirail > --- INVENTORY (25) --- Improved Quantum Reactor Zero-point Reactor Zero-point Reactor Centrium Heavy Treads Advanced Energy Well (500) Advanced Energy Well (500) Experimental Energy Well (600) Experimental Energy Well (600) Experimental Core Analyzer Advanced Weapon Cycler Centrium Linked Plating AEGIS Remote Shield Architect God Chip A Architect God Chip D Enhanced Gamma Rifle Cooled Nova Cannon A3's Sniper Rifle Sigix Corpse Peak State ------------ > --- POWER ------------ Improved Quantum Reactor Zero-point Reactor Zero-point Reactor > --- PROPULSION ------- Armored Heavy Treads Armored Heavy Treads > --- UTILITY ---------- Huge Storage Unit Experimental Targeting Computer Experimental Core Analyzer Experimental Core Analyzer Improved Armor Integrity Analyzer Advanced Particle Accelerator Advanced Weapon Cycler SHELL Armor Experimental Force Field > --- WEAPON ----------- Enhanced Gamma Rifle Heavy Quantum Rifle Heavy Quantum Rifle Heavy Quantum Rifle Heavy Quantum Rifle Multirail Multirail Multirail > --- INVENTORY -------- Zero-point Reactor Zero-point Reactor Zero-point Reactor Armored Heavy Treads Centrium Heavy Treads Experimental Matter Compressor Experimental Matter Compressor Experimental Core Analyzer AEGIS Remote Shield AEGIS Remote Shield Experimental System Purifier Long-range Tractor Beam Long-range Tractor Beam Transdimensional Reconstructor Enhanced Quantum Rifle Enhanced Quantum Rifle Enhanced Quantum Rifle Enhanced Quantum Rifle Enhanced Quantum Rifle Enhanced Quantum Rifle Cooled Nova Cannon Multirail Hypervelocity Multirail [Rating: 281] Favorites ----------- Power Improved Quantum Reactor Engine Heavy Ion Engine Power Core Neutrino Core Reactor Improved Quantum Reactor Propulsion Armored Heavy Treads Treads Armored Heavy Treads Leg Improved Titanium Leg Wheel Wheel Utility Huge Storage Unit Device Improved Cooling System Storage Huge Storage Unit Processor Experimental Core Analyzer Hackware Hacking Suite Protection SHELL Armor Weapon Heavy Assault Rifle Energy Gun Enhanced Quantum Rifle Energy Cannon Cooled Nova Cannon Ballistic Gun Heavy Assault Rifle Ballistic Cannon Light Cannon Launcher Rocket Launcher Special Weapon Remote Datajack Impact Weapon Great Maul Piercing Weapon Spear Build | -11 -10 -10 -9 -9 -9 -8 -8 -7 -7 -7 -7 -7 -7 -6 -6 -6 -6 -6 -5 -5 -5 -5 -5 -5 -5 -5 -4 -4 -4 -4 -4 -3 -3 -2 -2 -2 -1 -1 -1 ------- Run | Yrd Mat Min Mat Min Exi Min Mat Fac Was Fac Low Low Zio Pro Fac Low Low Dat Pro Fac Was Fac Ext Cet Arc Hub Fac Was Fac Arm Lab Res Tes Res Qua Sec Acc Com Ac0 Slots Evolved 18 | . . . 2 . . . 2 2 . . . . . . 2 . . . . 2 . . . . . . 2 . . . . 2 . 2 . . 2 . . Power 2 | . . . . . . . . . . . . . . . . . . . . . . . . . . . 2 . . . . . . . . . . . . Propulsion 2 | . . . . . . . 1 . . . . . . . 1 . . . . . . . . . . . . . . . . . . . . . . . . Utility 8 | . . . . . . . 1 1 . . . . . . 1 . . . . 1 . . . . . . . . . . . . . 2 . . 2 . . Weapon 6 | . . . 2 . . . . 1 . . . . . . . . . . . 1 . . . . . . . . . . . 2 . . . . . . . Parts Attached 1118 | 7 25 6 23 2 14 1 41 19 26 26 9 8 16 6 36 9 2 8 7 20 16 15 27 11 8 26 31 9 67 110 7 20 55 33 50 107 42 138 35 Power 54 | 2 2 1 1 . 3 . 2 . . 2 . . . . 1 . . . . . 1 . 1 2 . . 2 1 7 7 1 1 4 . . 3 1 4 5 Engine 13 | 2 2 1 1 . 2 . 2 . . 1 . . . . . . . . . . . . . . . . 1 . 1 . . . . . . . . . . Core 3 | . . . . . 1 . . . . 1 . . . . . . . . . . . . 1 . . . . . . . . . . . . . . . . Reactor 38 | . . . . . . . . . . . . . . . 1 . . . . . 1 . . 2 . . 1 1 6 7 1 1 4 . . 3 1 4 5 Propulsion 71 | 2 7 3 6 . 2 . 13 1 5 . . 1 . . 1 . . . 2 . 3 . . 2 . . . . 4 7 . . 1 2 1 . 3 2 3 Treads 66 | 2 3 3 6 . 2 . 13 1 5 . . . . . 1 . . . 2 . 3 . . 2 . . . . 4 7 . . 1 2 1 . 3 2 3 Leg 3 | . 2 . . . . . . . . . . 1 . . . . . . . . . . . . . . . . . . . . . . . . . . . Wheel 2 | . 2 . . . . . . . . . . . . . . . . . . . . . . . . . . . . . . . . . . . . . . Hover . | . . . . . . . . . . . . . . . . . . . . . . . . . . . . . . . . . . . . . . . . Flight . | . . . . . . . . . . . . . . . . . . . . . . . . . . . . . . . . . . . . . . . . Utility 496 | 1 6 2 3 . 1 . 8 9 10 15 6 2 9 2 26 7 1 5 1 13 9 6 18 3 7 16 25 7 36 75 4 14 20 15 35 40 6 24 9 Device 374 | . 3 . . . . . 1 9 9 8 3 1 3 1 22 4 1 3 . 10 9 3 7 2 5 14 22 7 26 55 3 11 20 14 33 34 5 20 6 Storage 6 | 1 2 . 1 . . . 1 . . . . . . . . . . . . . . . . . . . . . . 1 . . . . . . . . . Processor 17 | . . . . . . . . . 1 1 . . 2 . . 1 . . . 1 . . . 1 . . . . 1 . . 2 . . 1 1 1 4 . Hackware 7 | . . . . . . . 1 . . 1 . . 1 . . . . . . . . . 1 . . . . . . 1 . . . . . . . . 2 Protection 92 | . 1 2 2 . 1 . 5 . . 5 3 1 3 1 4 2 . 2 1 2 . 3 10 . 2 2 3 . 9 18 1 1 . 1 1 5 . . 1 Artifact . | . . . . . . . . . . . . . . . . . . . . . . . . . . . . . . . . . . . . . . . . Weapon 497 | 2 10 . 13 2 8 1 18 9 11 9 3 5 7 4 8 2 1 3 4 7 3 9 8 4 1 10 4 1 20 21 2 5 30 16 14 64 32 108 18 Energy Gun 51 | 1 1 . . . . . . . . 3 1 . 1 . . . . . . . . . . . . 1 1 . 2 5 1 . 4 . . . . 14 16 Energy Cannon 66 | . . . . . . . . . . . 1 . . 1 . . . . 1 . 1 4 1 . . . . . . . 1 1 5 2 5 12 6 25 . Ballistic Gun 352 | 1 4 . 12 1 7 1 16 6 11 4 1 3 6 2 6 1 1 2 3 6 2 5 7 4 1 9 3 1 16 15 . 4 20 14 9 52 26 68 2 Ballistic Cannon 6 | . 5 . . . . . . . . . . . . . . . . . . . . . . . . . . . . . . . 1 . . . . . . Launcher 17 | . . . 1 1 1 . 2 1 . 2 . 2 . 1 1 1 . . . . . . . . . . . . 2 1 . . . . . . . 1 . Special Weapon 3 | . . . . . . . . 1 . . . . . . 1 . . . . 1 . . . . . . . . . . . . . . . . . . . Impact Weapon 1 | . . . . . . . . 1 . . . . . . . . . . . . . . . . . . . . . . . . . . . . . . . Slashing Weapon . | . . . . . . . . . . . . . . . . . . . . . . . . . . . . . . . . . . . . . . . . Piercing Weapon 1 | . . . . . . . . . . . . . . . . . . 1 . . . . . . . . . . . . . . . . . . . . . Special Melee Weapon . | . . . . . . . . . . . . . . . . . . . . . . . . . . . . . . . . . . . . . . . . Unidentified Prototypes 37 | . . . 1 . 2 . 1 . . 1 . . 3 . . . . . . . . . . . . . . . . 1 3 1 3 . 3 8 1 4 5 Corrupted Parts 7 | . . . . . . . . . 1 . . . 1 . . . . . . . . . 1 2 . 2 . . . . . . . . . . . . . System Corruption 31 | . . . . . . . . . 2 . . . 7 . . . . . . . . . 7 9 . 6 . . . . . . . . . . . . . Parts Lost 116 | . 5 . 3 . 11 . 5 2 7 3 1 1 . . 4 . 1 2 5 4 . . 1 1 . 1 1 . 17 16 . 1 1 . 1 1 1 8 12 Power 15 | . 1 . . . 1 . . . . 1 . . . . 1 . . . . . . . . . . . . . 5 2 . . 1 . . . 1 1 1 Propulsion 16 | . 2 . . . 2 . 2 1 2 . . . . . . . . . 2 . . . . . . . . . 2 1 . . . . . . . . 2 Utility 26 | . . . 2 . 1 . . . . . . 1 . . 2 . 1 1 1 1 . . . . . 1 1 . 2 6 . . . . . 1 . 4 1 Weapon 59 | . 2 . 1 . 7 . 3 1 5 2 1 . . . 1 . . 1 2 3 . . 1 1 . . . . 8 7 . 1 . . 1 . . 3 8 Highest Loss Streak 9 | . 4 . 1 . 9 . 3 1 4 2 1 1 . . 2 . 1 2 3 2 . . 1 1 . 1 1 . 7 3 . 1 1 . 1 1 1 4 4 To Critical Strikes 13 | . . . . . 8 . . . . . . . . . . . . . . . . . . . . . . . . 1 . . . . . . . . 4 Average Slot Usage (%) 88 | . 98 99 99 100 94 98 99 99 83 88 88 87 87 92 85 85 86 85 85 87 87 87 87 88 88 87 88 88 87 90 89 84 85 83 82 80 76 76 83 Engine 3 | . 13 14 11 11 11 11 9 7 7 4 7 7 7 7 5 . . . . . . . . . . . 5 5 2 . . . . . . . . . . Reactor 5 | . . . . . . . . . . . . . . . . 6 6 6 6 5 5 5 . 4 5 5 10 9 12 14 14 13 12 12 12 12 11 11 11 Treads 13 | . 20 28 21 22 21 22 26 23 14 15 13 7 7 7 12 13 13 13 12 11 11 11 11 11 11 11 10 10 9 11 10 9 9 8 8 8 7 7 7 Device 9 | . 11 . . . . . . 7 12 14 14 7 6 6 12 12 13 12 13 14 17 16 13 6 13 13 15 20 12 10 15 8 8 12 10 11 14 13 11 Storage 6 | . 14 14 11 11 11 11 9 7 7 7 7 7 7 7 6 6 6 6 6 5 5 5 5 5 5 5 5 5 5 5 5 4 4 4 4 4 3 3 3 Processor 4 | . . . . . . . . . 7 . . . . . . . . . . 5 5 5 5 9 5 3 . . 2 5 5 4 4 4 5 8 11 12 15 Hackware 3 | . . . . . . . 9 7 2 6 7 7 7 7 6 6 6 6 6 5 5 5 5 5 5 5 5 5 5 5 5 4 4 4 4 . . . . Protection 5 | . 2 13 10 11 11 11 8 7 . . . 6 6 7 6 6 6 6 6 2 . . 2 5 3 3 5 . 5 4 3 4 4 4 4 3 3 3 3 Energy Gun 3 | . 1 . . . . . . . . 9 . . 5 . . . . . . . . . . . . . . . . . 4 2 . . . . . 4 28 Ballistic Gun 28 | . 5 . 43 43 39 43 35 37 30 25 35 36 27 35 32 32 33 30 32 34 34 32 34 35 35 34 30 31 30 30 25 29 34 32 32 30 22 17 1 Naked Turns . | . . . . . . . . . . . . . . . . . . . . . . . . . . . . . . . . . . . . . . . . Heaviest Build 251 | 12 36 40 104 104 106 102 109 117 107 120 115 120 117 128 122 123 123 128 123 129 123 134 135 143 144 147 181 180 184 177 167 205 218 230 231 241 245 251 232 Greatest Support 170 | 40 40 40 40 40 40 40 62 62 90 90 90 70 70 70 140 140 140 140 140 140 140 140 140 160 160 160 160 160 160 160 160 160 160 150 170 170 170 145 145 Greatest Overweight (x) 4 | 3 4 1 2 2 2 2 1 1 2 1 1 1 1 1 . . . . . . . . . . . . 1 1 2 2 1 1 1 1 1 1 2 2 1 Average Overweight (x) . | . . . 1 2 2 2 1 1 1 1 1 1 1 1 . . . . . . . . . . . . 1 1 . . . 1 1 1 1 1 1 1 1 Largest Inventory Capacity 25 | 8 15 15 25 25 25 25 25 25 25 25 25 25 25 25 25 25 25 25 25 25 25 25 25 25 25 25 25 25 25 25 25 25 25 25 25 25 25 25 25 Average Capacity 24 | 7 11 15 22 25 25 25 25 25 25 25 25 25 25 25 25 25 25 25 25 25 25 25 25 25 25 25 25 25 25 25 25 25 25 25 25 25 25 25 25 Most Carried 25 | 2 15 15 25 25 25 25 25 25 25 25 23 25 25 25 25 25 25 25 25 25 25 25 25 25 25 25 25 25 25 25 24 25 25 25 25 25 25 25 25 Average Carried 23 | 1 10 14 20 24 19 24 24 24 23 24 22 23 24 24 24 24 24 24 23 17 24 24 24 24 25 24 24 24 24 23 22 24 24 24 24 24 24 24 21 Final Capacity 25 | 8 15 15 25 25 25 25 25 25 25 25 25 25 25 25 25 25 25 25 25 25 25 25 25 25 25 25 25 25 25 25 25 25 25 25 25 25 25 25 25 Final Carried 25 | 2 15 15 25 25 25 24 25 24 25 23 22 25 25 25 25 25 25 25 18 25 25 25 25 25 25 25 25 25 23 20 24 25 25 25 25 25 25 25 19 Class Distribution -------------------- 52% | Scavenger-Executioner 17% | Tank 15% | Scavenger-Tank 4% | Derelict-Tank 3% | Mutant 3% | Scavenger-Skirmisher Dominant Class ---------------- Mutant | -10/Materials Mutant | -10/Mines Tank | -9/Materials Tank | -9/Mines Tank | -9/Exiles Scavenger-Tank | -8/Mines Scavenger-Tank | -8/Materials Scavenger-Tank | -7/Factory Scavenger-Gunner | -7/Waste Scavenger-Skirmisher | -7/Factory Skirmisher | -7/Lower Caves Tank | -7/Lower Caves Tank | -7/Zion Derelict-Tank | -6/Proximity Caves Derelict-Tank | -6/Factory Scavenger-Tank | -6/Lower Caves Scavenger-Tank | -6/Lower Caves Scavenger-Tank | -6/Data Miner Scavenger-Tank | -5/Proximity Caves Scavenger-Executioner | -5/Factory Scavenger-Executioner | -5/Waste Scavenger-Executioner | -5/Factory Scavenger-Executioner | -5/Extension Scavenger-Executioner | -5/Cetus Scavenger-Executioner | -5/Archives Scavenger-Executioner | -5/Hub_04(d) Scavenger-Executioner | -4/Factory Scavenger-Executioner | -4/Waste Scavenger-Executioner | -4/Factory Scavenger-Executioner | -4/Armory Scavenger-Executioner | -4/Lab Scavenger-Executioner | -3/Research Scavenger-Executioner | -3/Testing Scavenger-Executioner | -2/Research Scavenger-Executioner | -2/Quarantine Scavenger-Executioner | -2/Section 7 Scavenger-Executioner | -1/Access Scavenger-Executioner | -1/Command Scavenger-Executioner | -1/Access_0 Resources | -11 -10 -10 -9 -9 -9 -8 -8 -7 -7 -7 -7 -7 -7 -6 -6 -6 -6 -6 -5 -5 -5 -5 -5 -5 -5 -5 -4 -4 -4 -4 -4 -3 -3 -2 -2 -2 -1 -1 -1 ----------- Run | Yrd Mat Min Mat Min Exi Min Mat Fac Was Fac Low Low Zio Pro Fac Low Low Dat Pro Fac Was Fac Ext Cet Arc Hub Fac Was Fac Arm Lab Res Tes Res Qua Sec Acc Com Ac0 Matter Collected 72509 | 227 614 324 1173 254 806 73 2159 656 1092 811 347 296 159 393 1501 706 189 382 501 1150 856 452 1290 442 314 959 1255 932 4565 5665 . 1085 2460 1098 2911 9234 5904 18652 622 Remotely 46106 | . . . . . . . . 232 419 . . . . . 717 . . . . 842 426 174 724 188 . 584 1080 672 3062 3904 . 651 720 814 2232 5768 5702 17195 . Salvage Created 126980 | . 732 177 1931 296 592 47 3068 848 1753 1126 106 149 . 330 1885 1258 313 407 515 1495 1524 705 2043 571 279 1539 1799 1690 6313 8490 . 1804 3139 1437 3149 12496 15379 42550 5045 Parts 4365 | . 55 12 117 20 72 8 162 47 34 57 7 13 . 12 76 25 8 20 23 90 28 33 89 26 21 81 82 23 257 312 . 69 155 77 152 515 313 1004 270 Haulers Intercepted 30 | . 2 . 5 . . . 5 . . 1 . . . . 3 . . . . . . 1 . . . 4 . . 4 . . 1 1 . 1 1 1 . . Recyclers Shooed 22 | . 2 . 1 . . . 4 . . 1 . . . . 1 . . . . 3 . . . . . 1 . . 4 . . . . 1 . 3 . 1 . Parts Field Recycled . | . . . . . . . . . . . . . . . . . . . . . . . . . . . . . . . . . . . . . . . . Retrieved Matter . | . . . . . . . . . . . . . . . . . . . . . . . . . . . . . . . . . . . . . . . . Parts Self-Destructed 68 | . . . . . . . . . . . 7 8 . 7 . 17 5 . 24 . . . . . . . . . . . . . . . . . . . . Prevented . | . . . . . . . . . . . . . . . . . . . . . . . . . . . . . . . . . . . . . . . . Kills | -11 -10 -10 -9 -9 -9 -8 -8 -7 -7 -7 -7 -7 -7 -6 -6 -6 -6 -6 -5 -5 -5 -5 -5 -5 -5 -5 -4 -4 -4 -4 -4 -3 -3 -2 -2 -2 -1 -1 -1 ------- Run | Yrd Mat Min Mat Min Exi Min Mat Fac Was Fac Low Low Zio Pro Fac Low Low Dat Pro Fac Was Fac Ext Cet Arc Hub Fac Was Fac Arm Lab Res Tes Res Qua Sec Acc Com Ac0 Combat Hostiles Destroyed 1465 | . 19 6 34 16 3 3 43 13 6 11 2 9 . 4 27 8 1 4 10 24 7 10 21 6 . 11 21 6 70 123 . 24 32 14 26 131 158 508 54 Guns 1393 | . 9 . 31 11 1 3 38 13 6 11 2 1 . . 24 5 1 4 10 24 7 10 21 6 . 11 21 6 58 118 . 24 31 13 26 130 158 507 52 Cannons 18 | . 10 6 . . . . . . . . . . . . . . . . . . . . . . . . . . . . . . 1 . . . . 1 . AOE 52 | . . . 3 5 2 . 5 . . . . 8 . 4 3 3 . . . . . . . . . . . . 12 5 . . . 1 . 1 . . . Classes Destroyed 32 | . 7 1 4 1 2 . 3 1 1 . . . . . . . . . 2 . . . 1 . . 1 . . 3 . . . 1 . 1 2 . 1 . Worker 66 | . . 2 3 . . . 3 1 . 1 . . . . 1 . . . . 2 . 1 . . . 11 . . 8 . . 2 2 1 6 4 3 15 . Builder 30 | . . . 1 1 . . 1 1 . 2 . . . . 1 . . . . . . . . . . 2 1 . 6 . . . 3 1 2 2 6 . . Tunneler 4 | . . . . . . . 1 . . . . . . . . . . . . 1 . . . . . 1 1 . . . . . . . . . . . . Hauler 30 | . 2 . 5 . . . 5 . . 1 . . . . 3 . . . . . . 1 . . . 4 . . 4 . . 1 1 . 1 1 1 . . Recycler 55 | . 1 . 2 . . . 8 1 . 5 . . . . 2 . . . . 2 . . 4 . . 1 1 . 10 . . 1 5 2 . 1 2 7 . Carrier 43 | . . . . . . . . . . . . . . . . . . . . . . . . . . . . . . . . . . . . 4 18 21 . Mechanic 32 | . 1 . . . . . 1 . . 1 . . . . 1 . . . . . . . . . . . 1 . 3 2 . . . . 1 5 9 7 . Operator 19 | . 2 . 1 . . . . . . 1 . . . . 1 . . . . . . . 1 . 7 1 . . . 1 . 1 . 1 . . 1 1 . Turret 1 | . . . . . 1 . . . . . . . . . . . . . . . . . . . . . . . . . . . . . . . . . . Watcher 54 | . 3 . 5 . . . 5 2 . 2 . . . . 2 . . . . 5 . . 3 1 . 1 2 . 4 3 . . 2 2 2 3 1 6 . Swarmer 134 | . 9 2 7 7 . 3 . . . . . 8 . . 9 3 . . 4 12 . . 2 . . . . . 6 8 . 5 5 . . 4 . 40 . Cutter 12 | . . . . . . . . . . . . . . . . . . . . . . . . . . . . . . . . . . . . . . 12 . Saboteur 43 | . . . . . . . . . . . . . . . . . . . . . . . . . . . . . 1 3 . . . . . 5 9 25 . Grunt 481 | . 10 4 15 2 . . 26 9 . 6 1 . . 3 12 3 . . 2 5 . 6 4 . . 4 11 . 27 67 . 8 3 . 6 41 55 151 . Brawler 82 | . . . 1 1 . . 1 . . . . . . . . 1 . . . . . . . . . . 3 . 2 6 . . . . . 12 14 41 . Duelist 65 | . . . 1 . . . 1 . . . . . . 1 . . . . . . 1 . . . . . . . . 8 . . . . . 6 12 35 . Protector 44 | . . . . . . . . . . . . . . . . . . . 1 . . . . . . . 2 . 1 2 . . . . . 4 10 24 . Researcher 11 | . . . . . . . . . . . . . . . . . . . . . . . . . . . . . . . . . 2 . 2 7 . . . Sentry 69 | . . . 10 . . . 7 1 . 1 . . . . 4 1 . . 2 2 1 1 13 . . . 1 . 9 4 . 1 3 1 . 3 . 4 . Demolisher 19 | . . . . . . . . . . . . . . . . . . . 1 . . . . . . . . . . 4 . 2 . . . . . 12 . Specialist 38 | . . . . . . . 6 . . . . . . . . . . . . . . . . . . . . . 1 . . . . 2 3 2 . 24 . Hunter 116 | . . . . . . . 2 . . . . . . . . . 1 . . . . 1 1 . . 5 2 . 12 7 . 1 4 7 4 9 7 53 . Programmer 176 | . . . . . . . . 3 . 4 1 1 . . 2 . . . . 5 . 2 . . . . 2 . 8 10 . . 13 3 8 24 26 64 . Heavy 4 | . . . . . . . . . . . . . . . . . . . . . . . . . . 2 . . 1 1 . . . . . . . . . Behemoth 6 | . . . . . . . . . . . . . . . . . . . . . . . 1 . . . . . . 1 . . . 1 . 1 2 . . Compactor 17 | . . . . . . . . . 6 . . . . . . . . . . . 5 . . . . . . 6 . . . . . . . . . . . Cetus Guard 6 | . . . . . . . . . . . . . . . . . . . . . . . . 6 . . . . . . . . . . . . . . . S7 Guard 1 | . . . . . . . . . . . . . . . . . . . . . . . . . . . . . . . . . . . . 1 . . . M Guard 2 | . . . . . . . . . . . . . . . . . . . . . . . . . . . . . . . . . . . . . . 2 . Enhanced Grunt 30 | . . . . . . . . . . . . . . . . . . 4 . . . . . . . . . . . . . . . . . . . . 26 Enhanced Sentry 3 | . . . . . . . . . . . . . . . . . . . . . . . . . . . . . . . . . . . . . . . 3 Enhanced Hunter 8 | . . . . . . . . . . . . . . . . . . . . . . . . . . . . . . . . . . . . . . . 8 Enhanced Programmer 10 | . . . . . . . . . . . . . . . . . . . . . . . . . . . . . . . . . . . . . . . 10 Tracker 8 | . . . . . . . . . . . . . . . . . . . . . . . . . . . . . . 1 . . 1 . 2 4 . . . Combat Programmer 10 | . . . . . . . . . . . . . . . . . . . . . . . . . . . . . . 1 . . 1 . 2 4 . 2 . Investigator 2 | . . . . . . . . . . . . . . . . . . . . . . . . . . . . . . . . . . . . 1 . 1 . Striker 29 | . . . . . . . . . . . . . . . . . . . . . . . . . . . . . 1 . . 6 . . . 4 9 9 . Executioner 29 | . . . . . . . . . . . . . . . . . . . . . . . . . . . . . 1 . . 1 . . . 5 14 8 . Alpha 7 2 | . . . . . . . . . . . . . . . . . . . . . . . . . . . . . . . . . . . . 2 . . . Fortress 1 | . . . . . . . . . . . . . . . . . . . . . . . . . . . . . . . . . . . 1 . . . . Protovariant X 2 | . . . . . . . . . . . . . . . . . . . . . . . . . . . . . . . . . 2 . . . . . . Zionite 7 | . . . . . 7 . . . . . . . . . . . . . . . . . . . . . . . . . . . . . . . . . . Assembled 8 | . . . . 6 2 . . . . . . . . . . . . . . . . . . . . . . . . . . . . . . . . . . Thug 1 | . . . . . . . . . . . . . . . . . . . . . . . . . 1 . . . . . . . . . . . . . . Butcher 1 | . . . . . . . . . . . . . . . . . . . . . . . . 1 . . . . . . . . . . . . . . . Best Kill Streak 42 | . 4 4 9 6 3 2 8 9 2 4 1 4 . 4 6 4 1 1 4 20 4 8 5 4 7 13 6 4 20 20 . 8 8 6 6 24 37 42 6 Combat Bots Only 34 | . 4 2 7 6 2 2 7 6 2 2 1 4 . 4 6 4 1 1 4 16 4 8 4 3 . 8 5 4 12 20 . 8 7 4 4 23 27 34 6 Max Kills in Single Turn 7 | . 1 2 3 3 2 2 2 2 1 1 1 3 . 2 4 2 1 1 1 4 1 2 2 3 3 7 2 1 6 3 . 4 3 4 3 5 4 6 2 Gunslinging 3 | . . . 1 1 . 1 . . . . . . . . . . . . . 3 . 1 1 1 . . 1 . 1 2 . 3 1 1 1 3 2 3 1 Exploded 3 | . . . 3 3 1 . 2 . . . . 3 . 2 3 2 . . . . . . . . . . . . 3 2 . . . 1 . 1 . . . Melee . | . . . . . . . . . . . . . . . . . . . . . . . . . . . . . . . . . . . . . . . . Uniques/NPCs Destroyed 14 | . . . . . 4 . . . . . . . . . . . . 1 . . . . . . . . . . . . . . . . . . . 2 7 8R-AWN (-9/Exiles) EX-BIN (-9/Exiles) EX-DEC (-9/Exiles) EX-HEX (-9/Exiles) Data Miner (-6/Data Miner) MAIN.C Shell (-1/Command) MAIN.C (-1/Command) A8 (-1/Access_0) A6 (-1/Access_0) A2 (-1/Access_0) Architect (-1/Access_0) A5 (-1/Access_0) A4 (-1/Access_0) A3 (-1/Access_0) Combat | -11 -10 -10 -9 -9 -9 -8 -8 -7 -7 -7 -7 -7 -7 -6 -6 -6 -6 -6 -5 -5 -5 -5 -5 -5 -5 -5 -4 -4 -4 -4 -4 -3 -3 -2 -2 -2 -1 -1 -1 -------- Run | Yrd Mat Min Mat Min Exi Min Mat Fac Was Fac Low Low Zio Pro Fac Low Low Dat Pro Fac Was Fac Ext Cet Arc Hub Fac Was Fac Arm Lab Res Tes Res Qua Sec Acc Com Ac0 Hostile Shots Fired 4624 | . 125 26 114 34 99 4 205 102 6 69 11 19 . 7 200 42 12 19 33 70 6 16 69 16 . 47 93 . 527 463 . 50 159 80 181 410 167 406 737 Missed 1051 | . 25 7 31 8 14 2 49 43 . 27 1 5 . 2 54 11 1 3 7 20 1 1 18 2 . 10 16 . 131 98 . 9 37 19 26 59 43 69 202 Damage Taken 50791 | . 824 251 1052 231 1485 16 2371 570 197 735 109 223 . 94 1237 244 159 555 686 1058 115 375 973 291 . 605 1295 . 5238 5139 . 832 1598 696 2286 3974 1404 5324 8549 Core 2967 | . 155 56 87 31 118 . 122 26 30 12 . . . . 35 6 . 42 60 81 . 40 121 . . 85 . . 185 162 . 53 86 47 51 185 72 202 817 Absorbed by Shields 29611 | . . . . . . . . . . . . . . . 461 . . . . . . . 222 80 . 194 478 . 2229 3032 . 492 1090 723 2257 3783 1458 4797 8315 Reduced by Siege Mode 2620 | . . . . . . . . . 5 . . 12 . 5 114 19 . 53 31 97 . 20 55 27 . 46 91 . 540 405 . 12 72 29 157 209 70 256 295 Ignored by Resistances 257 | . . . . . . . . . . . . . . . 37 18 . 188 14 . . . . . . . . . . . . . . . . . . . . Regen/Repaired (Parts) 12126 | . . . 140 . . . 314 . . . . . . . . . . . . 120 209 . . . . . . . . . . 109 1096 262 853 2932 527 2371 3193 Core Remaining (%) 66 | 100 . 15 . . . 41 77 . . . . . . 90 . . . . 83 . . . . . . 67 . . . . 69 . 89 . . 68 . . 32 Volleys Fired 3285 | . 95 17 89 20 114 4 147 36 39 39 9 8 . 29 57 21 6 16 33 37 16 22 43 11 9 31 44 19 119 161 9 33 101 26 87 259 315 983 181 Largest 8 | . 2 2 4 4 4 4 4 5 5 5 5 4 . 5 5 5 5 5 5 6 6 6 6 6 6 6 6 6 6 6 1 8 8 8 8 8 8 8 8 Hottest 620 | . 80 70 89 89 83 90 97 129 126 184 120 97 . 141 135 130 130 120 125 163 158 260 183 188 200 204 206 206 210 245 80 396 281 278 293 311 319 580 620 Shots Fired 13835 | . 186 34 353 70 223 15 554 144 170 159 41 22 . 49 283 99 30 79 115 206 97 82 254 64 51 171 239 113 619 774 12 210 423 153 477 1246 1225 3518 1275 Gun 13348 | . 124 . 352 67 220 15 547 143 170 158 41 18 . 24 282 97 30 79 105 206 97 72 253 64 51 171 239 113 609 771 12 204 407 147 463 1200 1156 3366 1275 Cannon 447 | . 62 34 . . . . . . . . . . . 21 . . . . 10 . . 10 1 . . . . . . . . 6 16 6 14 46 69 152 . Launcher 39 | . . . 1 3 3 . 7 . . 1 . 4 . 4 1 2 . . . . . . . . . . . . 10 3 . . . . . . . . . Special 1 | . . . . . . . . 1 . . . . . . . . . . . . . . . . . . . . . . . . . . . . . . . Kinetic 12016 | . 153 34 352 67 220 15 547 143 170 127 41 18 . 24 282 97 30 79 105 206 97 72 253 64 51 169 235 113 606 749 3 201 376 147 463 1200 1156 3330 21 Thermal 1760 | . 29 . . . . . . . . 20 . . . 21 . . . . 10 . . 10 1 . . 2 4 . 3 22 9 9 47 6 14 46 69 184 1254 Explosive 39 | . . . 1 3 3 . 7 . . 1 . 4 . 4 1 2 . . . . . . . . . . . . 10 3 . . . . . . . . . Electromagnetic 19 | . 4 . . . . . . . . 11 . . . . . . . . . . . . . . . . . . . . . . . . . . . 4 . Robot Hit Streak 81 | . 7 8 12 10 44 2 16 22 13 14 4 15 . 22 27 13 10 30 64 28 23 27 32 18 6 27 21 18 35 36 . 10 22 41 56 77 69 81 37 Robot Miss Streak 17 | . 5 4 5 4 6 3 4 5 3 3 3 . . 1 3 4 2 2 3 7 1 2 2 2 1 2 3 3 3 3 . 4 4 7 6 8 7 17 7 Penetration Max 2 | . . . . . 1 1 1 1 1 . . . . . 1 1 . . 1 1 1 . 1 1 1 1 2 1 2 2 . 1 2 1 1 2 2 1 . Secondary Targets 445 | . 2 . 7 4 . 1 8 2 . . . . . . 7 3 . . 2 9 1 1 5 2 . 1 7 1 21 45 . 9 10 4 11 61 57 146 18 Max Gunslinging Chain 3 | . 1 . 2 2 . 1 1 1 . . . . . . 1 1 . . 1 3 1 1 1 2 . 1 1 1 2 2 . 3 2 2 2 2 2 2 2 Shots Hit Robots 8955 | . 99 21 202 31 158 5 346 87 134 94 22 14 . 18 201 55 16 72 77 129 72 45 174 49 22 84 168 92 432 518 . 115 185 89 334 881 804 2232 878 Core Hits 5465 | . 39 11 84 28 50 3 152 37 28 44 4 8 . 12 97 32 8 28 33 65 24 26 85 28 17 61 74 18 250 319 . 55 111 48 150 526 632 1847 431 Critical Kills 173 | . . . . . 7 1 2 1 1 . . . . . . 1 . 1 . 2 . . 3 1 1 4 5 1 12 40 . 6 5 2 8 12 25 27 5 Critical Parts Destroyed 158 | . . . . . 14 . 5 . . . . . . . 1 1 . 1 1 2 . 1 4 1 . 2 8 . 10 29 . 4 2 . 11 15 21 19 6 Critical Strikes 372 | . 1 1 . . 22 1 7 1 7 2 . . . . 1 2 . 2 1 4 1 1 8 2 1 6 14 3 23 70 . 11 7 2 21 30 52 49 19 Burn 7 | . . . . . . . . . . 2 . . . . . . . . . . . . . . . . . . . . . . . . . . . . 5 Destroy 363 | . . . . . 22 1 7 1 7 . . . . . 1 2 . 2 1 4 1 1 8 2 1 6 14 3 23 70 . 11 7 2 21 30 52 49 14 Blast 2 | . 1 1 . . . . . . . . . . . . . . . . . . . . . . . . . . . . . . . . . . . . . Melee Attacks 12 | . . . . . . . . 1 . . . . . . . . . 11 . . . . . . . . . . . . . . . . . . . . . Impact 1 | . . . . . . . . 1 . . . . . . . . . . . . . . . . . . . . . . . . . . . . . . . Slashing . | . . . . . . . . . . . . . . . . . . . . . . . . . . . . . . . . . . . . . . . . Piercing 11 | . . . . . . . . . . . . . . . . . . 11 . . . . . . . . . . . . . . . . . . . . . Sneak Attacks 1 | . . . . . . . . . . . . . . . . . . 1 . . . . . . . . . . . . . . . . . . . . . Combat Hostiles . | . . . . . . . . . . . . . . . . . . . . . . . . . . . . . . . . . . . . . . . . Follow-up Attacks . | . . . . . . . . . . . . . . . . . . . . . . . . . . . . . . . . . . . . . . . . Damage Inflicted 307588 | . 1197 422 2868 921 2090 129 5301 1491 2381 1760 349 946 . 658 4385 1310 311 1159 1260 2796 1537 1003 3748 1492 779 3782 5316 2720 16421 17402 . 3827 5837 2966 8202 32797 32609 99324 36092 Guns 294586 | . 597 . 2714 482 2003 62 4654 1484 2381 1621 349 204 . 249 3619 1135 311 1092 1260 2771 1537 956 3683 1492 779 2955 5316 2720 11585 16556 . 3786 5539 2571 8202 32395 32474 98960 36092 Cannons 2010 | . 581 398 . . . . . . . . . . . . . . . . . . . 47 . . . . . . . . . 41 287 . . 218 135 303 . Explosions 10394 | . . . 136 379 87 67 589 . . 91 . 711 . 409 742 175 . . . . . . . . . 810 . . 4836 846 . . . 390 . 126 . . . Melee 67 | . . . . . . . . . . . . . . . . . . 67 . . . . . . . . . . . . . . . . . . . . . Ramming 531 | . 19 24 18 60 . . 58 7 . 48 . 31 . . 24 . . . . 25 . . 65 . . 17 . . . . . . 11 5 . 58 . 61 . Kinetic 258426 | . 977 398 2714 482 2003 62 4654 1484 2381 1350 349 204 . 249 3619 1135 311 1092 1260 2771 1537 956 3683 1492 779 2955 5316 2720 11585 16493 . 3731 5539 2571 8202 32395 32474 98332 171 Thermal 38383 | . 171 . . . . 67 . . . 254 . . . . . . . . . . . 47 . . . . . . 349 63 . 96 287 . . 218 135 775 35921 Explosive 9117 | . . . 136 379 87 . 589 . . 40 . 711 . 409 742 175 . . . . . . . . . . . . 4487 846 . . . 390 . 126 . . . Electromagnetic 1064 | . 30 . . . . . . . . 68 . . . . . . . . . . . . . . . 810 . . . . . . . . . . . 156 . Impact . | . . . . . . . . . . . . . . . . . . . . . . . . . . . . . . . . . . . . . . . . Slashing . | . . . . . . . . . . . . . . . . . . . . . . . . . . . . . . . . . . . . . . . . Piercing 67 | . . . . . . . . . . . . . . . . . . 67 . . . . . . . . . . . . . . . . . . . . . Highest Corruption 43 | . . . . . . . . . 42 43 43 43 43 . 3 3 3 3 3 2 2 6 16 25 25 6 1 1 11 20 20 . 6 2 12 31 2 31 24 Average Corruption 15 | . . . . . . . . . 19 42 43 43 37 . 1 3 3 3 3 1 2 3 8 20 17 2 1 1 5 14 20 . 3 1 6 24 1 14 20 Corruption Purged 62 | . . . . . . . . . . . . . . . . . . . . . . . . . 25 6 . . . . . . . . . . . 31 . Corruption Blocked . | . . . . . . . . . . . . . . . . . . . . . . . . . . . . . . . . . . . . . . . . Effects 1606 | . . . . . . . . . 27 175 37 53 5 . 19 13 16 9 17 5 8 17 49 26 18 2 . 6 38 118 21 . 16 2 51 232 19 404 203 Message Errors 327 | . . . . . . . . . 10 46 8 10 2 . 3 1 4 3 6 1 4 3 15 4 5 . . 1 7 24 4 . 5 . 10 43 4 70 34 Matter Fused 301 | . . . . . . . . . 4 33 7 11 2 . 2 2 4 1 4 2 . 2 7 6 3 . . 1 8 25 4 . 2 . 11 33 5 73 49 Heat Flow Errors 173 | . . . . . . . . . 2 29 6 6 1 . 2 1 3 2 1 . . 4 3 4 . . . 1 3 10 3 . 3 . 4 27 2 39 17 Energy Discharges 167 | . . . . . . . . . 2 19 5 4 . . 2 3 2 2 3 1 . 3 6 2 2 1 . . 3 13 3 . 1 . 5 24 3 37 21 Parts Rejected 16 | . . . . . . . . . 1 1 . . . . 1 . . . . . . . . . . . . 1 2 1 . . . . . 1 . 4 4 Parts Fused 14 | . . . . . . . . . . . . 1 . . 1 . . . . . . . 2 . . . . . . 1 . . . . 3 2 . 1 3 Data Loss (minor) 156 | . . . . . . . . . 2 11 3 11 . . 1 3 2 1 2 . . 1 2 2 3 1 . 1 4 6 3 . 2 1 9 19 3 36 27 Data Loss (major) 63 | . . . . . . . . . . 7 3 2 . . 2 1 . . . . 1 . 5 1 . . . . 3 4 1 . . . 1 8 . 16 8 Misfires 80 | . . . . . . . . . 1 9 2 6 . . 4 2 . . . . 2 2 4 2 1 . . . . 10 3 . 1 . 1 8 . 17 5 Alerts 35 | . . . . . . . . . . 3 1 1 . . . . 1 . . . . 1 3 2 . . . . . 3 . . 1 . 1 4 . 10 4 Misdirections 1 | . . . . . . . . . . . . . . . . . . . . . . . . . . . . . . . . . . . . 1 . . . Weapon Failures 273 | . . . . . . . . . 5 17 2 1 . . 1 . . . 1 1 1 1 2 3 4 . . 1 8 21 . . 1 1 6 62 2 101 31 Overload Shots 11 | . . . . . . . . . . . . . . . . . . . . . . . . . . . . . . . . . . . . . 5 6 . Overflow Damage 381 | . 10 5 . . . 2 . . . 6 . 91 . . 27 42 . . . . . . 5 . . 2 . . 65 6 . . 7 53 . 60 . . . Projectiles 22 | . 10 5 . . . . . . . . . . . . . . . . . . . . . . . . . . . . . . 7 . . . . . . Explosions 343 | . . . . . . 2 . . . 6 . 80 . . 27 42 . . . . . . . . . 2 . . 65 6 . . . 53 . 60 . . . Melee 16 | . . . . . . . . . . . . 11 . . . . . . . . . . 5 . . . . . . . . . . . . . . . . Knockbacks 8 | . 4 3 . . . . 1 . . . . . . . . . . . . . . . . . . . . . . . . . . . . . . . . Impact 3 | . 1 1 . . . . 1 . . . . . . . . . . . . . . . . . . . . . . . . . . . . . . . . Kinetic 5 | . 3 2 . . . . . . . . . . . . . . . . . . . . . . . . . . . . . . . . . . . . . Secondary . | . . . . . . . . . . . . . . . . . . . . . . . . . . . . . . . . . . . . . . . . Self-Inflicted Damage 407 | . . . . . . . 26 . . 51 . . . . . . . . . . . . . . . 70 79 . 79 102 . . . . . . . . . Shots 9 | . . . . . . . 1 . . 1 . . . . . . . . . . . . . . . 1 1 . 3 2 . . . . . . . . . Rammed 49 | . 3 6 4 6 . . 6 2 . 6 . 1 . . 2 . . . . 1 . . 5 . . 1 . . . . . . 1 1 . 1 . 3 . Targets Rammed 51 | . 3 6 4 6 . . 7 2 . 6 . 1 . . 2 . . . . 2 . . 5 . . 1 . . . . . . 1 1 . 1 . 3 . Kicked . | . . . . . . . . . . . . . . . . . . . . . . . . . . . . . . . . . . . . . . . . Crushed 2 | . . . . . . . 1 . . . . . . . . . . . . 1 . . . . . . . . . . . . . . . . . . . Highest Temperature 396 | . 26 243 301 110 156 95 396 120 216 240 211 254 135 54 270 286 220 237 206 26 8 215 256 186 . 156 379 371 237 363 158 333 354 80 178 183 178 178 158 Average Temperature 93 | . 12 96 58 45 71 39 65 38 28 88 74 101 67 19 48 107 95 121 105 6 3 97 118 45 . 54 162 154 57 92 47 96 84 26 76 124 122 115 132 Received Heat Transfer 6070 | . 72 96 411 . . . 1233 144 . 189 9 . . 45 233 78 . . 36 66 27 90 173 22 . 61 271 . 280 1053 . 90 76 32 336 253 97 407 190 Effects 11 | . . . 1 . . . . . . . . . . . . . . . . . . . . . . . . 1 1 5 . . 3 . . . . . . Shutdowns 2 | . . . . . . . . . . . . . . . . . . . . . . . . . . . . . . 2 . . . . . . . . . Energy Bleed 1 | . . . . . . . . . . . . . . . . . . . . . . . . . . . . . 1 . . . . . . . . . . Interference 6 | . . . . . . . . . . . . . . . . . . . . . . . . . . . . . . 3 . . 3 . . . . . . Matter Decay 1 | . . . . . . . . . . . . . . . . . . . . . . . . . . . . 1 . . . . . . . . . . . Short Circuit 1 | . . . 1 . . . . . . . . . . . . . . . . . . . . . . . . . . . . . . . . . . . . Siege Activations 255 | . . . . . . . . . 3 . 3 3 . 1 14 3 . 4 4 4 2 3 8 3 1 4 7 3 16 25 . 9 17 6 13 33 17 29 20 Total Turns 7387 | . . . . . . . . . 52 . 14 18 . 9 201 30 . 54 42 77 32 55 118 28 1 86 216 55 444 533 . 61 242 68 229 538 1058 2848 278 Longest Duration 1301 | . . . . . . . . . 19 . 8 12 . 9 39 14 . 18 18 40 26 29 25 12 1 59 95 37 85 59 . 17 65 22 73 92 680 1301 48 Robots Corrupted 1 | . . . . . . . . . . . . . . . . . . . . . . . . . . . . . . . . . . . . . . 1 . Combat Hostiles 1 | . . . . . . . . . . . . . . . . . . . . . . . . . . . . . . . . . . . . . . 1 . Parts Fried 10 | . . . . . . . . . . . . . . . . . . . . . . . 1 1 . 7 . . . . . . . . . . . 1 . Impact Corruptions 4 | . . . . . . . . . . . . 3 . . . . . . . . . . 1 . . . . . . . . . . . . . . . . Robots Melted 2 | . . . . . . . . . . . . . . . . . . . . . . . . . . . . . . . . . . . . . . . 2 Combat Hostiles 2 | . . . . . . . . . . . . . . . . . . . . . . . . . . . . . . . . . . . . . . . 2 Parts Melted 70 | . 1 . . . . . . . . 1 . . . . . . . . . . . . . . . . . . 1 . . 1 . . . 2 . 3 61 Heat Transferred 23427 | . 400 . . . . 100 . . . 703 . . . . . . . . . . . 37 . . . . . . 200 74 . 111 222 . . 222 111 418 20829 Parts Sabotaged 5 | . . . . . . . . . . . . . . . . . . . . . . . . . . . . . . 5 . . . . . . . . . Parts Stolen 3 | . . . . . . . . . . . 3 . . . . . . . . . . . . . . . . . . . . . . . . . . . . Parts Stripped . | . . . . . . . . . . . . . . . . . . . . . . . . . . . . . . . . . . . . . . . . Power Chain Reactions . | . . . . . . . . . . . . . . . . . . . . . . . . . . . . . . . . . . . . . . . . Alert | -11 -10 -10 -9 -9 -9 -8 -8 -7 -7 -7 -7 -7 -7 -6 -6 -6 -6 -6 -5 -5 -5 -5 -5 -5 -5 -5 -4 -4 -4 -4 -4 -3 -3 -2 -2 -2 -1 -1 -1 ------- Run | Yrd Mat Min Mat Min Exi Min Mat Fac Was Fac Low Low Zio Pro Fac Low Low Dat Pro Fac Was Fac Ext Cet Arc Hub Fac Was Fac Arm Lab Res Tes Res Qua Sec Acc Com Ac0 Peak Influence 16030 | . 259 173 358 230 . 222 304 273 95 212 . . . . 549 . . . . 651 181 1569 853 717 496 1261 986 320 2557 2861 . 485 740 587 633 3177 5873 16030 . Initial 3758 | . . 13 . 55 . . . 65 95 . . . . . 6 . . . . 40 124 . 715 468 210 103 617 318 84 1252 . . 225 130 330 355 1905 3758 . Average 2051 | . 138 52 132 26 . 96 104 70 45 76 . . . . 113 . . . . 278 66 1079 726 568 422 501 785 287 942 1327 . 86 475 321 447 1478 3567 10649 . Maximum Alert Level 5 | . 1 . 1 1 . 1 1 1 . 1 . . . . 2 . . . . 2 . 4 3 3 2 4 3 1 5 5 . 2 3 2 2 5 5 5 . Low Security (%) 41 | 100 83 100 72 97 . 71 87 91 100 98 . . . . 88 . . . . 40 100 15 . . . 27 . 15 18 . . 81 1 31 . 3 . . . Level 1 9 | . 16 . 27 2 . 28 12 8 . 1 . . . . 5 . . . . 25 . 2 . . 36 16 . 84 4 . . 12 32 36 15 9 . . . Level 2 9 | . . . . . . . . . . . . . . . 5 . . . . 33 . . 35 99 63 18 11 . 21 3 . 5 56 31 84 9 . . . Level 3 7 | . . . . . . . . . . . . . . . . . . . . . . 18 64 . . 30 88 . 17 39 . . 10 . . 21 . . . Level 4 4 | . . . . . . . . . . . . . . . . . . . . . . 63 . . . 7 . . 18 32 . . . . . 21 . . . Level 5 9 | . . . . . . . . . . . . . . . . . . . . . . . . . . . . . 20 10 . . . . . 4 37 34 . High Security 18 | . . . . . . . . . . . . . . . . . . . . . . . . . . . . . . 14 . . . . . 31 62 65 . Max Security . | . . . . . . . . . . . . . . . . . . . . . . . . . . . . . . . . . . . . . . . . Sterilizations 2 | . . . . . . . . . . . . . . . . . . . . . . . . . . . . . . . . . . . . 1 1 . . Squads Dispatched 260 | . 4 . 3 . . . 8 4 . 7 . . . . 8 . . . . 2 . 13 1 . . 6 7 . 20 29 . 8 9 3 8 35 45 40 . Investigation 31 | . 3 . 3 . . . 3 1 . 3 . . . . 1 . . . . . . 4 1 . . 1 . . 2 2 . 3 2 1 . 1 . . . Extermination 39 | . . . . . . . . 1 . 3 . . . . 3 . . . . 1 . 1 . . . . 2 . 4 5 . . 5 1 4 5 3 1 . Reinforcement 37 | . 1 . . . . . 4 1 . 1 . . . . 1 . . . . 1 . 4 . . . 5 1 . 4 1 . 5 . 1 . 2 2 3 . Assault 121 | . . . . . . . . . . . . . . . 1 . . . . . . 2 . . . . 4 . 3 19 . . . . 1 18 37 36 . Garrison 19 | . . . . . . . 1 1 . . . . . . 2 . . . . . . 2 . . . . . . 7 . . . . . . 3 3 . . Intercept 13 | . . . . . . . . . . . . . . . . . . . . . . . . . . . . . . 2 . . 2 . 3 6 . . . Searches Triggered . | . . . . . . . . . . . . . . . . . . . . . . . . . . . . . . . . . . . . . . . . Construction Impeded 7 | . . . . . . . . 1 . . . . . . . . . . . . . 1 . . . 1 1 . 1 . . . . . . . 2 . . Haulers Reinforced 7 | . . . . . . . . . . . . . . . . . . . . . . 1 . . . . . . 3 . . 2 . . . 1 . . . Active Scanning Responses . | . . . . . . . . . . . . . . . . . . . . . . . . . . . . . . . . . . . . . . . . Cargo Convoy Interrupts 1 | . . . . . . . . . . . . . . . . . . . . . . . . . . . . . 1 . . . . . . . . . . Stealth | -11 -10 -10 -9 -9 -9 -8 -8 -7 -7 -7 -7 -7 -7 -6 -6 -6 -6 -6 -5 -5 -5 -5 -5 -5 -5 -5 -4 -4 -4 -4 -4 -3 -3 -2 -2 -2 -1 -1 -1 --------- Run | Yrd Mat Min Mat Min Exi Min Mat Fac Was Fac Low Low Zio Pro Fac Low Low Dat Pro Fac Was Fac Ext Cet Arc Hub Fac Was Fac Arm Lab Res Tes Res Qua Sec Acc Com Ac0 Distress Signals 62 | . . . 1 . . . 4 . . . . . . . . . . . 15 1 . 1 1 2 . 4 1 . 3 1 . 9 2 1 2 2 1 11 . Communications Jammed 12 | . . . . . . . . . . . . . . . . . . . . . . . . . . . . . 12 . . . . . . . . . . Distress Signals 9 | . . . . . . . . . . . . . . . . . . . . . . . . . . . . . 9 . . . . . . . . . . Times Spotted 1783 | . 25 6 42 17 24 3 54 16 6 16 5 9 . 4 33 6 1 4 10 31 7 18 25 10 8 24 25 6 84 150 . 31 35 16 38 162 209 533 90 Peak Tracking Total 37 | . 6 3 5 7 9 3 7 4 2 3 2 4 . 4 6 4 1 1 4 8 4 4 4 5 1 5 6 4 10 13 . 6 7 4 4 10 13 37 5 Tactical Retreats 47 | . 1 . . 1 7 1 1 1 . . . . . . 3 . . . . . . . . . . 3 . . 3 8 . . . . . 2 2 14 . Traps | -11 -10 -10 -9 -9 -9 -8 -8 -7 -7 -7 -7 -7 -7 -6 -6 -6 -6 -6 -5 -5 -5 -5 -5 -5 -5 -5 -4 -4 -4 -4 -4 -3 -3 -2 -2 -2 -1 -1 -1 ------- Run | Yrd Mat Min Mat Min Exi Min Mat Fac Was Fac Low Low Zio Pro Fac Low Low Dat Pro Fac Was Fac Ext Cet Arc Hub Fac Was Fac Arm Lab Res Tes Res Qua Sec Acc Com Ac0 Traps Triggered 15 | . 2 2 2 . . . . 1 . 1 . . . . . . . . . 1 . 1 1 . . . 1 . . 1 . . 1 . . . . 1 . Indirectly . | . . . . . . . . . . . . . . . . . . . . . . . . . . . . . . . . . . . . . . . . Trap Hack Attempts . | . . . . . . . . . . . . . . . . . . . . . . . . . . . . . . . . . . . . . . . . Triggered . | . . . . . . . . . . . . . . . . . . . . . . . . . . . . . . . . . . . . . . . . Disarmed . | . . . . . . . . . . . . . . . . . . . . . . . . . . . . . . . . . . . . . . . . Reprogrammed . | . . . . . . . . . . . . . . . . . . . . . . . . . . . . . . . . . . . . . . . . Reused . | . . . . . . . . . . . . . . . . . . . . . . . . . . . . . . . . . . . . . . . . Traps Extracted . | . . . . . . . . . . . . . . . . . . . . . . . . . . . . . . . . . . . . . . . . Installed . | . . . . . . . . . . . . . . . . . . . . . . . . . . . . . . . . . . . . . . . . Triggered 1 | . . . . . . . . . . . 1 . . . . . . . . . . . . . . . . . . . . . . . . . . . . Machines | -11 -10 -10 -9 -9 -9 -8 -8 -7 -7 -7 -7 -7 -7 -6 -6 -6 -6 -6 -5 -5 -5 -5 -5 -5 -5 -5 -4 -4 -4 -4 -4 -3 -3 -2 -2 -2 -1 -1 -1 ---------- Run | Yrd Mat Min Mat Min Exi Min Mat Fac Was Fac Low Low Zio Pro Fac Low Low Dat Pro Fac Was Fac Ext Cet Arc Hub Fac Was Fac Arm Lab Res Tes Res Qua Sec Acc Com Ac0 Machines Disabled 195 | . 2 . . 1 12 12 2 1 . 8 . . . . 8 . . . . 1 . 7 1 . 4 11 2 . 43 9 2 3 16 2 4 18 4 8 14 Max in Single Turn 12 | . 1 . . 1 2 12 1 1 . 4 . . . . 4 . . . . 1 . 1 1 . 1 7 2 . 10 2 1 1 2 1 1 1 1 1 1 Garrison Access 5 | . . . . . . . 1 . . 1 . . . . 1 . . . . . . 2 . . . . . . . . . . . . . . . . . Network Hub 1 | . . . . . . . . . . . . . . . . . . . . . . . . . . 1 . . . . . . . . . . . . . Machines Repaired . | . . . . . . . . . . . . . . . . . . . . . . . . . . . . . . . . . . . . . . . . Machines Dismantled 1 | . . . . . . . . . . . . . . . 1 . . . . . . . . . . . . . . . . . . . . . . . . Machines Sabotaged . | . . . . . . . . . . . . . . . . . . . . . . . . . . . . . . . . . . . . . . . . Overloaded Fab Kills . | . . . . . . . . . . . . . . . . . . . . . . . . . . . . . . . . . . . . . . . . Hacking | -11 -10 -10 -9 -9 -9 -8 -8 -7 -7 -7 -7 -7 -7 -6 -6 -6 -6 -6 -5 -5 -5 -5 -5 -5 -5 -5 -4 -4 -4 -4 -4 -3 -3 -2 -2 -2 -1 -1 -1 --------- Run | Yrd Mat Min Mat Min Exi Min Mat Fac Was Fac Low Low Zio Pro Fac Low Low Dat Pro Fac Was Fac Ext Cet Arc Hub Fac Was Fac Arm Lab Res Tes Res Qua Sec Acc Com Ac0 Machines Accessed 110 | . 6 1 14 . 1 . 12 2 . 10 . . . . 7 . . . . 4 . 10 8 . . 3 1 . 3 6 . 3 7 2 1 8 . . 1 Terminals 79 | . 5 . 11 . . . 8 1 . 7 . . . . 7 . . . . 2 . 5 7 . . 3 1 . 1 4 . 3 5 1 1 7 . . . Fabricators 7 | . . . . . . . . 1 . 1 . . . . . . . . . . . 1 . . . . . . 1 2 . . . 1 . . . . . Repair Stations 10 | . . . 2 . . . 2 . . 1 . . . . . . . . . 2 . 1 . . . . . . 1 . . . 1 . . . . . . Recycling Units 3 | . 1 . 1 . . . . . . . . . . . . . . . . . . . 1 . . . . . . . . . . . . . . . . Scanalyzers 4 | . . . . . . . 1 . . . . . . . . . . . . . . 1 . . . . . . . . . . 1 . . 1 . . . Garrison Access 4 | . . . . . . . 1 . . 1 . . . . . . . . . . . 2 . . . . . . . . . . . . . . . . . Total Hacks 374 | . 18 1 46 . 6 . 56 4 . 24 . . . . 17 . . . . 9 . 27 17 . . 6 6 . 18 31 . 8 32 6 4 20 . . 18 Successful 199 | . 7 1 28 . 6 . 41 1 . 6 . . . . 7 . . . . 5 . 14 4 . . 1 3 . 7 14 . 2 21 5 2 6 . . 18 Failed 174 | . 11 . 18 . . . 14 3 . 18 . . . . 10 . . . . 4 . 13 13 . . 5 3 . 11 17 . 6 11 1 2 14 . . . Catastrophic 34 | . 1 . 2 . . . 1 2 . 4 . . . . 2 . . . . 1 . 1 1 . . 2 1 . 3 4 . 2 1 . . 6 . . . Database Lockouts 1 | . . . . . . . 1 . . . . . . . . . . . . . . . . . . . . . . . . . . . . . . . . Manual 179 | . 13 . 29 . . . 27 . . 15 . . . . 15 . . . . 1 . 10 2 1 . 4 5 . 10 17 . 5 12 4 1 8 . . . Terminals 271 | . 17 . 41 . . . 39 1 . 18 . . . . 17 . . . . 4 . 12 15 . . 6 6 . 11 25 . 8 24 4 4 19 . . . Fabricators 20 | . . . . . . . . 3 . 2 . . . . . . . . . . . 3 . . . . . . 4 6 . . . 2 . . . . . Repair Stations 29 | . . . 4 . . . 9 . . 3 . . . . . . . . . 5 . 1 . . . . . . 3 . . . 4 . . . . . . Recycling Units 4 | . 1 . 1 . . . . . . . . . . . . . . . . . . . 2 . . . . . . . . . . . . . . . . Scanalyzers 19 | . . . . . . . 7 . . . . . . . . . . . . . . 7 . . . . . . . . . . 4 . . 1 . . . Garrison Access 6 | . . . . . . . 1 . . 1 . . . . . . . . . . . 4 . . . . . . . . . . . . . . . . . Terminal Hacks 103 | . 1 1 15 . 6 . 18 . . 1 . . . . 3 . . . . 1 . 3 3 . . 1 2 . 2 8 . . 12 2 1 5 . . 18 Record 24 | . . . . . 6 . . . . . . . . . . . . . . . . . . . . . . . . . . . . . . . . . 18 Part Schematic 1 | . . . 1 . . . . . . . . . . . . . . . . . . . . . . . . . . . . . . . . . . . . Robot Analysis 4 | . . . 3 . . . 1 . . . . . . . . . . . . . . . . . . . . . . . . . . . . . . . . Prototype ID Bank 12 | . . . 6 . . . 5 . . . . . . . . . . . . . . . . . . . . . . . . . 1 . . . . . . Open Door 6 | . . 1 . . . . . . . . . . . . . . . . . . . . 2 . . . . . . . . . 1 . . 2 . . . Level Access Points 1 | . . . . . . . . . . . . . . . . . . . . . . . . . . . . . . . . . 1 . . . . . . Branch Access Points 4 | . . . 1 . . . . . . . . . . . 1 . . . . . . . . . . . . . 1 . . . . 1 . . . . . Terminal Index 2 | . . . . . . . . . . 1 . . . . 1 . . . . . . . . . . . . . . . . . . . . . . . . Alert Level 16 | . . . 1 . . . 5 . . . . . . . . . . . . . . 1 1 . . . 1 . 1 3 . . 2 . . 1 . . . Unreport Threat 22 | . . . 2 . . . 4 . . . . . . . . . . . . 1 . 1 . . . 1 1 . . 5 . . 4 . 1 2 . . . Hauler Manifests 5 | . . . 1 . . . 1 . . . . . . . 1 . . . . . . . . . . . . . . . . . 1 1 . . . . . Registered Prototypes 1 | . . . . . . . . . . . . . . . . . . . . . . . . . . . . . . . . . 1 . . . . . . Zone Layout 5 | . 1 . . . . . 2 . . . . . . . . . . . . . . 1 . . . . . . . . . . 1 . . . . . . Fabricator Hacks 9 | . . . . . . . . 1 . . . . . . . . . . . . . . . . . . . . 2 4 . . . 2 . . . . . Load Schematic 5 | . . . . . . . . 1 . . . . . . . . . . . . . . . . . . . . 1 2 . . . 1 . . . . . Build 4 | . . . . . . . . . . . . . . . . . . . . . . . . . . . . . 1 2 . . . 1 . . . . . Repair Station Hacks 18 | . . . 4 . . . 8 . . . . . . . . . . . . 3 . . . . . . . . 1 . . . 2 . . . . . . Scan Component 10 | . . . 2 . . . 4 . . . . . . . . . . . . 2 . . . . . . . . 1 . . . 1 . . . . . . Repair 8 | . . . 2 . . . 4 . . . . . . . . . . . . 1 . . . . . . . . . . . . 1 . . . . . . Recycling Unit Hacks . | . . . . . . . . . . . . . . . . . . . . . . . . . . . . . . . . . . . . . . . . Scanalyzer 16 | . . . . . . . 6 . . . . . . . . . . . . . . 5 . . . . . . . . . . 4 . . 1 . . . Insert Component 10 | . . . . . . . 3 . . . . . . . . . . . . . . 2 . . . . . . . . . . 4 . . 1 . . . Analyze 6 | . . . . . . . 3 . . . . . . . . . . . . . . 3 . . . . . . . . . . . . . . . . . Garrison Access Hacks 3 | . . . . . . . 1 . . 1 . . . . . . . . . . . 1 . . . . . . . . . . . . . . . . . Seal Access 3 | . . . . . . . 1 . . 1 . . . . . . . . . . . 1 . . . . . . . . . . . . . . . . . Unauthorized Hacks 50 | . 6 . 9 . . . 8 . . 4 . . . . 4 . . . . 1 . 5 1 . . . 1 . 2 2 . 2 3 1 1 . . . . Terminals 47 | . 5 . 8 . . . 8 . . 4 . . . . 4 . . . . 1 . 4 1 . . . 1 . 2 2 . 2 3 1 1 . . . . Track 1 | . . . . . . . . . . 1 . . . . . . . . . . . . . . . . . . . . . . . . . . . . . Assimilate 1 | . . . . . . . . . . . . . . . 1 . . . . . . . . . . . . . . . . . . . . . . . . Botnet 43 | . 5 . 8 . . . 7 . . 3 . . . . 3 . . . . 1 . 4 1 . . . 1 . 1 2 . 2 3 1 1 . . . . Operators 2 | . . . . . . . 1 . . . . . . . . . . . . . . . . . . . . . 1 . . . . . . . . . . Fabricators 1 | . . . . . . . . . . . . . . . . . . . . . . 1 . . . . . . . . . . . . . . . . . Haulers 1 | . . . . . . . . . . . . . . . . . . . . . . 1 . . . . . . . . . . . . . . . . . Repair Stations . | . . . . . . . . . . . . . . . . . . . . . . . . . . . . . . . . . . . . . . . . Recycling Units 2 | . 1 . 1 . . . . . . . . . . . . . . . . . . . . . . . . . . . . . . . . . . . . Tunnel 2 | . 1 . 1 . . . . . . . . . . . . . . . . . . . . . . . . . . . . . . . . . . . . Scanalyzers . | . . . . . . . . . . . . . . . . . . . . . . . . . . . . . . . . . . . . . . . . Garrison Access . | . . . . . . . . . . . . . . . . . . . . . . . . . . . . . . . . . . . . . . . . Data Cores Recovered 6 | . 1 . 2 . . . . . . 1 . . . . . . . . . . . . 1 . . . . . . . . 1 . . . . . . . Used 3 | . . . 1 . . . . . . 1 . . . . . . . . . . . . 1 . . . . . . . . . . . . . . . . Hacking Detections 92 | . 5 . 10 . . . 9 2 . 9 . . . . 7 . . . . 4 . 9 7 1 . 3 1 . 3 6 . 2 6 2 1 5 . . . Full Trace Events 24 | . 1 . 4 . . . 3 1 . 2 . . . . 1 . . . . . . 3 1 . . . . . 2 2 . 1 1 1 . 1 . . . Feedback Events 2 | . . . . . . . . . . . . . . . . . . . . . . 1 1 . . . . . . . . . . . . . . . . Corruption 2 | . . . . . . . . . . . . . . . . . . . . . . 1 1 . . . . . . . . . . . . . . . . Feedback Blocked . | . . . . . . . . . . . . . . . . . . . . . . . . . . . . . . . . . . . . . . . . Robot Schematics Acquired 3 | . . . . . . . . . . . . . . . . . . . . . . . . . . . . . . . . . 1 . . 2 . . . Robots Built . | . . . . . . . . . . . . . . . . . . . . . . . . . . . . . . . . . . . . . . . . Authchips . | . . . . . . . . . . . . . . . . . . . . . . . . . . . . . . . . . . . . . . . . Time . | . . . . . . . . . . . . . . . . . . . . . . . . . . . . . . . . . . . . . . . . Total Robot Build Rating . | . . . . . . . . . . . . . . . . . . . . . . . . . . . . . . . . . . . . . . . . Part Schematics Acquired 12 | . . . 1 . . . 2 . . . . . . . . . . . . . . 2 . . . . . . . . . . 4 . . 3 . . . Parts Built 4 | . . . . . . . . . . . . . . . . . . . . . . . . . . . . . 1 2 . . . 1 . . . . . Authchips . | . . . . . . . . . . . . . . . . . . . . . . . . . . . . . . . . . . . . . . . . Time 444 | . . . . . . . . . . . . . . . . . . . . . . . . . . . . . 111 222 . . . 111 . . . . . Total Part Build Rating 36 | . . . . . . . . . . . . . . . . . . . . . . . . . . . . . 9 18 . . . 9 . . . . . Parts Repaired 8 | . . . 2 . . . 4 . . . . . . . . . . . . 1 . . . . . . . . . . . . 1 . . . . . . Time 270 | . . . 58 . . . 122 . . . . . . . . . . . . 22 . . . . . . . . . . . . 68 . . . . . . Parts Recycled . | . . . . . . . . . . . . . . . . . . . . . . . . . . . . . . . . . . . . . . . . Recycled Matter . | . . . . . . . . . . . . . . . . . . . . . . . . . . . . . . . . . . . . . . . . Retrieved Matter . | . . . . . . . . . . . . . . . . . . . . . . . . . . . . . . . . . . . . . . . . Retrieved Components . | . . . . . . . . . . . . . . . . . . . . . . . . . . . . . . . . . . . . . . . . Parts Scanalyzed 4 | . . . . . . . 2 . . . . . . . . . . . . . . 2 . . . . . . . . . . . . . . . . . Part Schematics Acquired 4 | . . . . . . . 2 . . . . . . . . . . . . . . 2 . . . . . . . . . . . . . . . . . Parts Damaged 1 | . . . . . . . 1 . . . . . . . . . . . . . . . . . . . . . . . . . . . . . . . . Bothacking | -11 -10 -10 -9 -9 -9 -8 -8 -7 -7 -7 -7 -7 -7 -6 -6 -6 -6 -6 -5 -5 -5 -5 -5 -5 -5 -5 -4 -4 -4 -4 -4 -3 -3 -2 -2 -2 -1 -1 -1 ------------ Run | Yrd Mat Min Mat Min Exi Min Mat Fac Was Fac Low Low Zio Pro Fac Low Low Dat Pro Fac Was Fac Ext Cet Arc Hub Fac Was Fac Arm Lab Res Tes Res Qua Sec Acc Com Ac0 Used RIF Installer . | . . . . . . . . . . . . . . . . . . . . . . . . . . . . . . . . . . . . . . . . Robots Hacked 1 | . . . . . . . . 1 . . . . . . . . . . . . . . . . . . . . . . . . . . . . . . . Non-combat 1 | . . . . . . . . 1 . . . . . . . . . . . . . . . . . . . . . . . . . . . . . . . Combat . | . . . . . . . . . . . . . . . . . . . . . . . . . . . . . . . . . . . . . . . . Robot Hacks Applied 1 | . . . . . . . . 1 . . . . . . . . . . . . . . . . . . . . . . . . . . . . . . . find_chute 1 | . . . . . . . . 1 . . . . . . . . . . . . . . . . . . . . . . . . . . . . . . . Relay Couplers Released 2 | . . . . . . . . . . . . . . . 1 . . . . . . 1 . . . . . . . . . . . . . . . . . Machine Destruction 2 | . . . . . . . . . . . . . . . 1 . . . . . . 1 . . . . . . . . . . . . . . . . . Fabnet Peak Effective % . | . . . . . . . . . . . . . . . . . . . . . . . . . . . . . . . . . . . . . . . . Robots Rewired 26 | . . . . . . . . . . . . . . . . . . . . . . . 16 . . . . . . 10 . . . . . . . . . Allies Hacked 1 | . . . . . . . . . . . . . . . . . . . . . . 1 . . . . . . . . . . . . . . . . . Hacks Repelled . | . . . . . . . . . . . . . . . . . . . . . . . . . . . . . . . . . . . . . . . . Allies | -11 -10 -10 -9 -9 -9 -8 -8 -7 -7 -7 -7 -7 -7 -6 -6 -6 -6 -6 -5 -5 -5 -5 -5 -5 -5 -5 -4 -4 -4 -4 -4 -3 -3 -2 -2 -2 -1 -1 -1 -------- Run | Yrd Mat Min Mat Min Exi Min Mat Fac Was Fac Low Low Zio Pro Fac Low Low Dat Pro Fac Was Fac Ext Cet Arc Hub Fac Was Fac Arm Lab Res Tes Res Qua Sec Acc Com Ac0 Total Allies 57 | . . . . 1 . . . . . . . . . . 1 . . . . . 20 . 20 5 . . . . . 10 . . . . . . . . . Largest Group 20 | . . . . 1 . . . . . . . . . . 1 . . . . . 20 20 8 11 10 7 . . . 4 . . . . . . . . . Highest-Rated Group 791 | . . . . 31 . . . . . . . . . . 10 . . . . . 733 733 375 791 771 550 . . . 144 . . . . . . . . . Highest-Rated Ally 159 | . . . . 31 . . . . . . . . . . 10 . . . . . 50 50 159 159 159 96 . . . 48 . . . . . . . . . Total Orders 4 | . . . . . . . . . . . . . . . . . . . . . . . . 4 . . . . . . . . . . . . . . . STAY 2 | . . . . . . . . . . . . . . . . . . . . . . . . 2 . . . . . . . . . . . . . . . FOLLOW 2 | . . . . . . . . . . . . . . . . . . . . . . . . 2 . . . . . . . . . . . . . . . Ally Attacks 470 | . . . . . . . . . . . . . . . . . . . . . 20 203 55 17 40 75 . . . 60 . . . . . . . . . Total Damage 14115 | . . . . . . . . . . . . . . . . . . . . . 292 6926 1357 464 1072 2418 . . . 1586 . . . . . . . . . Kills 73 | . . . . . . . . . . . . . . . . . . . . . . 40 5 3 4 15 . . . 6 . . . . . . . . . Allies Corrupted 3 | . . . . . . . . . . . . . . . . . . . . . . 3 . . . . . . . . . . . . . . . . . Allies Melted . | . . . . . . . . . . . . . . . . . . . . . . . . . . . . . . . . . . . . . . . . Intel | -11 -10 -10 -9 -9 -9 -8 -8 -7 -7 -7 -7 -7 -7 -6 -6 -6 -6 -6 -5 -5 -5 -5 -5 -5 -5 -5 -4 -4 -4 -4 -4 -3 -3 -2 -2 -2 -1 -1 -1 ------- Run | Yrd Mat Min Mat Min Exi Min Mat Fac Was Fac Low Low Zio Pro Fac Low Low Dat Pro Fac Was Fac Ext Cet Arc Hub Fac Was Fac Arm Lab Res Tes Res Qua Sec Acc Com Ac0 Robot Analysis Total 138 | . . . 3 . . . 1 . . . . . . . . . . 134 . . . . . . . . . . . . . . . . . . . . . Derelict Logs Recovered 12 | . . 3 . 2 . . . . . . 1 . 3 1 . . 1 . 1 . . . . . . . . . . . . . . . . . . . . Drone Launches . | . . . . . . . . . . . . . . . . . . . . . . . . . . . . . . . . . . . . . . . . Drone Recoveries . | . . . . . . . . . . . . . . . . . . . . . . . . . . . . . . . . . . . . . . . . Exploration | -11 -10 -10 -9 -9 -9 -8 -8 -7 -7 -7 -7 -7 -7 -6 -6 -6 -6 -6 -5 -5 -5 -5 -5 -5 -5 -5 -4 -4 -4 -4 -4 -3 -3 -2 -2 -2 -1 -1 -1 ------------- Run | Yrd Mat Min Mat Min Exi Min Mat Fac Was Fac Low Low Zio Pro Fac Low Low Dat Pro Fac Was Fac Ext Cet Arc Hub Fac Was Fac Arm Lab Res Tes Res Qua Sec Acc Com Ac0 Turns Passed 72520 | 74 1677 968 4148 3087 2311 1311 5005 1195 442 2996 740 986 2600 1778 2108 751 891 508 710 584 750 918 1410 520 483 749 796 476 1414 2395 442 1608 2111 738 1450 3791 2497 11283 3819 Spaces Moved 24103 | 50 965 554 1361 906 589 391 1754 392 107 1105 276 375 1068 688 1027 399 535 210 348 233 406 454 617 211 126 247 196 157 308 566 162 541 595 227 370 1116 451 2763 1257 Core 33 | 24 9 . . . . . . . . . . . . . . . . . . . . . . . . . . . . . . . . . . . . . . Treads 23627 | 26 513 554 1361 906 589 391 1754 392 107 1105 276 375 1068 688 1027 399 535 210 348 233 406 454 617 211 126 247 196 157 308 566 162 541 595 227 370 1116 451 2763 1257 Legs 30 | . 30 . . . . . . . . . . . . . . . . . . . . . . . . . . . . . . . . . . . . . . Wheels 413 | . 413 . . . . . . . . . . . . . . . . . . . . . . . . . . . . . . . . . . . . . . Hover . | . . . . . . . . . . . . . . . . . . . . . . . . . . . . . . . . . . . . . . . . Flight . | . . . . . . . . . . . . . . . . . . . . . . . . . . . . . . . . . . . . . . . . Fastest Speed 50 | 50 95 160 160 330 330 330 235 238 240 245 240 240 240 240 160 160 160 160 160 160 160 160 160 160 160 160 240 240 160 160 160 240 240 240 240 240 240 232 232 Average Speed 229 | 127 134 160 268 330 330 330 238 243 248 245 243 240 240 240 160 160 160 160 160 160 160 160 160 160 160 160 240 240 234 237 215 240 240 240 243 240 243 261 246 Slowest Speed 330 | 200 250 240 330 330 330 330 246 246 330 245 245 240 240 240 160 160 160 160 160 160 160 160 160 160 160 160 240 240 320 320 240 240 240 245 245 240 330 330 250 Overloaded Moves . | . . . . . . . . . . . . . . . . . . . . . . . . . . . . . . . . . . . . . . . . Propulsion Burnouts . | . . . . . . . . . . . . . . . . . . . . . . . . . . . . . . . . . . . . . . . . Robots Hopped . | . . . . . . . . . . . . . . . . . . . . . . . . . . . . . . . . . . . . . . . . Cave-ins Triggered 1 | . . . . . . . . . . . . . . . . . . . . . . . . . . . . . . 1 . . . . . . . . . Teleports 2 | . . . . . . . . . . . . . . . . . . . . . . . . . . . . . . . . . . . . . . 1 1 Exploration Rate (%) 56 | 3 96 97 94 100 74 98 87 12 69 29 51 44 83 89 28 58 71 71 55 9 95 17 84 56 79 38 8 99 12 45 78 23 66 8 48 62 10 60 73 Regions Visited 39 Branch Regions 23 Pre-discovered Areas 31 | . 1 1 1 . 1 . . . . . 1 . 2 . . . . 24 . . . . . . . . . . . . . . . . . . . . . Known Exits Taken 10 | . . . 1 . . 1 . . . 1 . . . . 1 . . . 1 . . 1 . . . 1 . . 1 . . . 1 1 . . . . . Unknown Exits Taken 23 | 1 1 1 . 1 1 . 1 . . . 1 1 1 1 . 1 1 1 . . . . 1 1 1 . . . . 1 1 1 . . 1 1 1 1 . Scrap Searched 18 | . . 1 . 1 . 1 . . . . 1 2 3 5 . 1 2 . 1 . . . . . . . . . . . . . . . . . . . . Spaces Dug 252 | . . . . . . . 22 2 . . . . . 7 . 15 . . 2 . . 4 . . . 3 1 . 5 32 . 2 15 5 7 11 26 86 7 Terrain Destroyed 2078 | . . . 14 24 28 27 47 3 . 37 . 32 . 29 37 40 1 . 14 1 . 10 18 . 14 193 56 1 295 153 . 27 54 70 37 69 95 274 378 Melee 1 | . . . . . . . . 1 . . . . . . . . . . . . . . . . . . . . . . . . . . . . . . . Projectile 1243 | . . . . . 7 2 . 1 . 2 . . . 11 1 4 1 . 14 . . 8 17 . 14 36 43 1 94 88 . 24 52 33 32 46 78 257 377 AOE 765 | . . . 14 24 20 25 47 . . 35 . 32 . 18 36 36 . . . . . . . . . 156 11 . 200 62 . . . 35 . 14 . . . Terrain Rammed . | . . . . . . . . . . . . . . . . . . . . . . . . . . . . . . . . . . . . . . . . Walls Destroyed . | . . . . . . . . . . . . . . . . . . . . . . . . . . . . . . . . . . . . . . . . Machines Disabled . | . . . . . . . . . . . . . . . . . . . . . . . . . . . . . . . . . . . . . . . . Actions | -11 -10 -10 -9 -9 -9 -8 -8 -7 -7 -7 -7 -7 -7 -6 -6 -6 -6 -6 -5 -5 -5 -5 -5 -5 -5 -5 -4 -4 -4 -4 -4 -3 -3 -2 -2 -2 -1 -1 -1 --------- Run | Yrd Mat Min Mat Min Exi Min Mat Fac Was Fac Low Low Zio Pro Fac Low Low Dat Pro Fac Was Fac Ext Cet Arc Hub Fac Was Fac Arm Lab Res Tes Res Qua Sec Acc Com Ac0 Total 37602 | 57 1171 602 1652 946 795 407 2248 551 203 1287 317 444 1106 776 1318 467 557 337 444 362 479 596 909 367 379 513 410 216 670 1176 249 764 1075 346 710 1982 1877 7175 1662 Wait 7891 | . 47 10 135 7 47 7 236 94 18 81 20 47 4 48 159 35 12 71 55 53 13 93 90 107 232 193 126 27 139 245 63 145 277 45 180 406 1035 3138 151 Move 24065 | 49 964 553 1360 905 588 390 1753 392 106 1104 275 374 1067 687 1026 398 534 209 347 233 405 453 616 210 125 246 196 156 307 564 161 540 594 226 369 1115 450 2762 1256 Hop . | . . . . . . . . . . . . . . . . . . . . . . . . . . . . . . . . . . . . . . . . Pick Up 425 | 1 23 3 23 3 20 2 28 5 8 12 3 5 4 3 17 1 2 11 1 14 10 6 6 12 . 7 6 2 23 29 7 12 12 4 9 26 7 35 23 Fast Attach 254 | 6 6 2 6 . 1 1 7 . 8 9 . 1 11 . 3 2 . 1 . 3 5 2 5 5 8 5 3 2 12 13 . 4 19 6 8 24 12 41 13 Attach 260 | . 2 . 7 . 9 . 9 5 8 6 3 1 1 . 6 . 2 2 5 5 1 . 3 3 . 4 3 . 17 20 4 5 1 2 3 27 16 65 15 Detach 90 | . . . . . . . . . . 2 . . . . . . . . . . . . . . . . . . 1 1 . 1 1 . . 15 10 58 1 Swap 616 | 1 17 4 10 2 4 . 25 14 10 11 6 6 4 6 27 7 . 5 2 12 10 13 19 3 . 17 25 7 38 77 5 11 35 25 39 63 15 33 8 Drop 495 | . 14 7 18 3 11 3 36 2 6 17 1 1 15 3 13 3 1 11 1 3 19 7 13 16 5 9 7 3 14 26 . 13 34 11 15 46 17 57 14 Fire 3285 | . 95 17 89 20 114 4 147 36 39 39 9 8 . 29 57 21 6 16 33 37 16 22 43 11 9 31 44 19 119 161 9 33 101 26 87 259 315 983 181 Melee 12 | . . . . . . . . 1 . . . . . . . . . 11 . . . . . . . . . . . . . . . . . . . . . Ram . | . . . . . . . . . . . . . . . . . . . . . . . . . . . . . . . . . . . . . . . . Kick . | . . . . . . . . . . . . . . . . . . . . . . . . . . . . . . . . . . . . . . . . Crush 51 | . 3 6 4 6 . . 7 2 . 6 . 1 . . 2 . . . . 2 . . 5 . . 1 . . . . . . 1 1 . 1 . 3 . Escape Stasis 1 | . . . . . . . . . . . . . . . . . . . . . . . . . . . . . . 1 . . . . . . . . . Rewire 149 | . . . . . 1 . . . . . . . . . . . . . . . . . 109 . . . . . . 39 . . . . . . . . . Trap . | . . . . . . . . . . . . . . . . . . . . . . . . . . . . . . . . . . . . . . . . Miscellaneous 8 | . . . . . . . . . . . . . . . 8 . . . . . . . . . . . . . . . . . . . . . . . . Route ------- -11/Scrapyard -10/Materials (discovered 5 exits: *Mat x3 / *Min x2) -10/Mines (discovered 3 exits: *Mat x2 / Sub) -9/Materials (discovered 7 exits: *Mat x3 / *Min x2 / *Sto x2) -9/Mines (discovered 4 exits: *Mat x2 / *Exi / [*Zio]) -9/Exiles -8/Mines (discovered 2 exits: *Mat x2) -8/Materials (discovered 2 exits: *Fac x2) -7/Factory -7/Waste -7/Factory -7/Lower Caves -7/Lower Caves (discovered 2 exits: *Fac / [*Zio]) -7/Zion -6/Proximity Caves -6/Factory (discovered 5 exits: *Fac x3 / *Low x2) -6/Lower Caves -6/Lower Caves -6/Data Miner -5/Proximity Caves -5/Factory (discovered 2 exits: Fac / Ext) -5/Waste -5/Factory -5/Extension (discovered 2 exits: *Fac / *Cet) -5/Cetus (discovered 2 exits: *Fac / [*Arc]) -5/Archives (discovered 2 exits: *Fac / *Hub) -5/Hub_04(d) -4/Factory -4/Waste -4/Factory (discovered 3 exits: Upp x2 / *Arm) -4/Armory (discovered 2 exits: *Res / [*Lab]) -4/Lab -3/Research (discovered 2 exits: *Res / *Tes) -3/Testing -2/Research (discovered 3 exits: [*Acc] / *Qua x2) -2/Quarantine (discovered 2 exits: [*Acc] / *Sec) -2/Section 7 -1/Access -1/Command (discovered 3 exits: [*Sur x2] / *Ac0) -1/Access_0 0b11 Command History --------- Turn | Location | Event 11 | -11/Scrapyard | Discovered new exit (range 16) 75 | -11/Scrapyard | Entered Materials 256 | -10/Materials | Lost 4 parts (2n2w) 338 | -10/Materials | Core integrity fell below 50% 370 | -10/Materials | Discovered new exit (range 7) 666 | -10/Materials | Discovered new exit (range 10) 919 | -10/Materials | Build established: Mutant 1054 | -10/Materials | Discovered new exit (range 15) 1317 | -10/Materials | Discovered new exit (range 8) 1542 | -10/Materials | Discovered new exit (range 13) 1752 | -10/Materials | Entered Mines 1840 | -10/Mines | Discovered new exit (range 13) 2040 | -10/Mines | Core integrity fell below 20% 2266 | -10/Mines | Discovered new exit (range 3) 2307 | -10/Mines | Met a Derelict who couldn't figure out how to use a Trap Extractor 2371 | -10/Mines | Identified exit to Subcaves 2545 | -10/Mines | Joined a pair of Derelicts in attacking an 0b10 outpost 2720 | -10/Mines | Entered Materials 2720 | -9/Materials | Evolved 2 slots: Weapon x2 2721 | -9/Materials | Identified exit to Mines 2735 | -9/Materials | Discovered new exit (range 13) 2980 | -9/Materials | Repaired Lgt. Treads 3047 | -9/Materials | Discovered new exit (range 14) 3202 | -9/Materials | Build established: Tank 3208 | -9/Materials | Discovered new exit (range 11) 3562 | -9/Materials | Discovered new exit (range 16) 5189 | -9/Materials | Destroyed 7 combat bots 5479 | -9/Materials | Identified exit to Storage 5636 | -9/Materials | Repaired Hvy. Assault Rifle 6025 | -9/Materials | Discovered new exit (range 16) 6868 | -9/Materials | Entered Mines 7251 | -9/Mines | Identified exit to Materials 7614 | -9/Mines | Learned 2 Materials zone layouts 7899 | -9/Mines | Assembled infested the area 7927 | -9/Mines | Met 8R-AWN 8032 | -9/Mines | A Derelict revealed a hidden shortcut to a safe place 8861 | -9/Mines | Discovered new exit (range 5) 9141 | -9/Mines | Received a Mining Laser from a helpful Derelict 9148 | -9/Mines | Discovered exit to Materials (range 5) 9955 | -9/Mines | Entered Exiles 10035 | -9/Exiles | Welcomed by 8R-AWN 10087 | -9/Exiles | Learned about 8R-AWN's background 10091 | -9/Exiles | Met EX-HEX 10295 | -9/Exiles | Met EX-DEC 10355 | -9/Exiles | Learned location of Zion (-7) 10467 | -9/Exiles | Discovered new exit (range 14) 11213 | -9/Exiles | Attacked by the Exiles 11399 | -9/Exiles | Core integrity fell below 50% 11435 | -9/Exiles | Destroyed 8R-AWN 11442 | -9/Exiles | Lost 9 parts (1p2n1u5w) 11445 | -9/Exiles | Found Prototype Ballistic Gun 11445 | -9/Exiles | Identified 8R-AWN's Boregun 11612 | -9/Exiles | Destroyed EX-BIN 11748 | -9/Exiles | Destroyed EX-DEC 11774 | -9/Exiles | Found Prototype Processor 11799 | -9/Exiles | Destroyed EX-HEX 12266 | -9/Exiles | Entered Mines 12675 | -8/Mines | Build established: Scavenger-Tank 13107 | -8/Mines | Discovered exit to Materials (range 10) 13191 | -8/Mines | Discovered exit to Materials (range 15) 13577 | -8/Mines | Entered Materials 13577 | -8/Materials | Evolved 2 slots: Propulsion x1, Utility x1 13649 | -8/Materials | Lost 3 parts (2n1w) 13666 | -8/Materials | Destroyed 7 combat bots 13879 | -8/Materials | Repaired Rocket Launcher 13906 | -8/Materials | Repaired Lgt. Assault Rifle 14438 | -8/Materials | Discovered new exit (range 5) 14703 | -8/Materials | Garrison activated, responded to threat 14951 | -8/Materials | Discovered new exit (range 3) 15008 | -8/Materials | Repaired Hvy. Assault Rifle 15042 | -8/Materials | Repaired Hvy. Assault Rifle 17796 | -8/Materials | Central database locked down 17979 | -8/Materials | Identified Exp. Core Analyzer 18582 | -8/Materials | Entered Factory 18582 | -7/Factory | Evolved 2 slots: Utility x1, Weapon x1 19704 | -7/Factory | Garrison activated, responded to threat 19777 | -7/Factory | Sucked down chute 19777 | -7/Factory | Entered Waste 19792 | -7/Waste | EMP discharged 19817 | -7/Waste | Spotted C-40 Crusher 19817 | -7/Waste | Spotted C-40 Crusher 19841 | -7/Waste | Crushed by Compactor (1 part destroyed, 1 dropped) 19842 | -7/Waste | Destroyed C-40 Crusher 19844 | -7/Waste | Crushed by Compactor (1 part destroyed, 1 dropped) 19847 | -7/Waste | Crushed by Compactor (1 part destroyed, 2 dropped) 19850 | -7/Waste | Destroyed C-40 Crusher 19877 | -7/Waste | Spotted C-40 Crusher 19878 | -7/Waste | Lost 4 parts (1n3w) 19892 | -7/Waste | EMP discharged 19892 | -7/Waste | System corruption reached 10% 19900 | -7/Waste | Crushed by Compactor (0 parts destroyed, 1 dropped) 19903 | -7/Waste | Crushed by Compactor (1 part destroyed, 1 dropped) 19905 | -7/Waste | Destroyed C-40 Crusher 19913 | -7/Waste | Spotted C-40 Crusher 19936 | -7/Waste | Destroyed C-40 Crusher 19951 | -7/Waste | Spotted C-40 Crusher 19970 | -7/Waste | Destroyed C-40 Crusher 19992 | -7/Waste | EMP discharged 20062 | -7/Waste | Spotted C-40 Crusher 20081 | -7/Waste | Crushed by Compactor (1 part destroyed, 1 dropped) 20082 | -7/Waste | Destroyed C-40 Crusher 20092 | -7/Waste | EMP discharged 20092 | -7/Waste | System corruption reached 30% 20119 | -7/Waste | Build established: Scavenger-Gunner 20192 | -7/Waste | EMP discharged 20197 | -7/Waste | Discovered new exit (range 10) 20219 | -7/Waste | Entered Factory 20526 | -7/Factory | Build established: Scavenger-Skirmisher 21674 | -7/Factory | Discovered new exit (range 5) 21897 | -7/Factory | Identified exit to Lower Caves 23161 | -7/Factory | Build established: Skirmisher 23215 | -7/Factory | Entered Lower Caves 23294 | -7/Lower Caves | Learned location of Extension (-5) 23443 | -7/Lower Caves | Encountered a Warlord checkpoint 23931 | -7/Lower Caves | Discovered new exit (range 7) 23955 | -7/Lower Caves | Entered another Lower Caves area 24004 | -7/Lower Caves | Discovered new exit (range 9) 24224 | -7/Lower Caves | Spotted B-75 Beast 24263 | -7/Lower Caves | Build established: Tank 24554 | -7/Lower Caves | Discovered new exit (range 14) 24941 | -7/Lower Caves | Entered Zion 25052 | -7/Zion | System corruption cleaned by Quarantine Array 25073 | -7/Zion | System corruption cleaned by Quarantine Array 25291 | -7/Zion | Discovered new exit (range 15) 25339 | -7/Zion | Given the Hacking Drone Bay 25341 | -7/Zion | Found Prototype Device 25501 | -7/Zion | Learned Factory trap positions 25783 | -7/Zion | Learned location of Warlord (-5) 25814 | -7/Zion | Given A8's code to call for help 26052 | -7/Zion | Learned Factory emergency access door positions 26148 | -7/Zion | Found Prototype Processor 26148 | -7/Zion | Identified Exp. Terrain Scan Processor 26153 | -7/Zion | Found Prototype Hackware 26153 | -7/Zion | Identified Exp. System Shield 26307 | -7/Zion | Learned Factory security intel 26843 | -7/Zion | Build established: Derelict-Tank 27541 | -7/Zion | Entered Proximity Caves 28024 | -6/Proximity Caves | Build established: Tank 28485 | -6/Proximity Caves | Learned location of 1 exit from Factory 28631 | -6/Proximity Caves | Build established: Derelict-Tank 29051 | -6/Proximity Caves | Discovered new exit (range 5) 29319 | -6/Proximity Caves | Entered Factory 29319 | -6/Factory | Evolved 2 slots: Propulsion x1, Utility x1 29320 | -6/Factory | Identified exit to Factory 29321 | -6/Factory | Loaded intel: 122 trap records 29663 | -6/Factory | Build established: Tank 29759 | -6/Factory | Discovered exit to Factory (range 11) 29767 | -6/Factory | Discovered exit to Factory (range 3) 30305 | -6/Factory | Build established: Derelict-Tank 30509 | -6/Factory | Identified exit to Lower Caves 31206 | -6/Factory | Spotted B-75 Beast 31246 | -6/Factory | Garrison activated, responded to threat 31427 | -6/Factory | Entered Lower Caves 31643 | -6/Lower Caves | Build established: Scavenger-Tank 31848 | -6/Lower Caves | Spotted B-75 Beast 32022 | -6/Lower Caves | Attracted the attention of an 0b10 checkpoint 32044 | -6/Lower Caves | Discovered new exit (range 15) 32178 | -6/Lower Caves | Entered another Lower Caves area 32205 | -6/Lower Caves | Learned location of 2 exits from Factory 32346 | -6/Lower Caves | Encountered a Warlord checkpoint 32868 | -6/Lower Caves | Discovered new exit (range 7) 33069 | -6/Lower Caves | Entered Data Miner 33071 | -6/Data Miner | Discovered new exit (range 6) 33101 | -6/Data Miner | Met Data Miner 33124 | -6/Data Miner | Destroyed Data Miner 33126 | -6/Data Miner | Interfaced with the Data Conduit 33245 | -6/Data Miner | Found Exp. Thermal Shield 33385 | -6/Data Miner | Found Prototype Hackware 33449 | -6/Data Miner | Found Exp. Thermal Shield 33577 | -6/Data Miner | Entered Proximity Caves 33590 | -5/Proximity Caves | Learned Factory emergency access door positions 33882 | -5/Proximity Caves | Attracted the attention of an 0b10 checkpoint 34124 | -5/Proximity Caves | Lost 3 parts (1n2w) 34263 | -5/Proximity Caves | Discovered exit to Factory (range 10) 34287 | -5/Proximity Caves | Entered Factory 34287 | -5/Factory | Evolved 2 slots: Utility x1, Weapon x1 34288 | -5/Factory | Identified exit to Extension 34288 | -5/Factory | Identified exit to Factory 34290 | -5/Factory | Loaded intel: 242 machine locations 34400 | -5/Factory | Repaired Gauss Rifle 34611 | -5/Factory | Build established: Scavenger-Executioner 34668 | -5/Factory | Destroyed 16 combat bots 34871 | -5/Factory | Sucked down chute 34871 | -5/Factory | Entered Waste 34872 | -5/Waste | Met a frightened Derelict 34884 | -5/Waste | Spotted C-40 Crusher 34892 | -5/Waste | Destroyed C-40 Crusher 34907 | -5/Waste | Spotted C-40 Crusher 34911 | -5/Waste | Spotted C-40 Crusher 34916 | -5/Waste | Destroyed C-40 Crusher 34919 | -5/Waste | Destroyed C-40 Crusher 34920 | -5/Waste | Spotted C-40 Crusher 34924 | -5/Waste | Destroyed C-40 Crusher 34925 | -5/Waste | Spotted C-40 Crusher 34933 | -5/Waste | Destroyed C-40 Crusher 35253 | -5/Waste | Discovered new exit (range 13) 35444 | -5/Waste | Warlord forces began an assault 35621 | -5/Waste | Entered Factory 35621 | -5/Factory | Accompanied by 20 allies 35622 | -5/Factory | Loaded intel: 289 machine locations 35986 | -5/Factory | Lost 3 allies 36040 | -5/Factory | Lost 4 allies 36336 | -5/Factory | Garrison activated, responded to threat 36388 | -5/Factory | Lost 9 allies 36397 | -5/Factory | Destroyed 8 combat bots 36514 | -5/Factory | Discovered exit to Extension (range 16) 36521 | -5/Factory | First assault squad dispatched 36539 | -5/Factory | Entered Extension 36540 | -5/Extension | Loaded intel: 25 machine locations 37246 | -5/Extension | Spotted B-75 Beast 37266 | -5/Extension | Allies destroyed B-75 Beast 37273 | -5/Extension | Spotted B-75 Beast 37281 | -5/Extension | Destroyed B-75 Beast 37311 | -5/Extension | Lost 5 allies 37314 | -5/Extension | Disrupted transfer network 37555 | -5/Extension | Rescued A7 37564 | -5/Extension | Lost 4 allies 37646 | -5/Extension | Rescued a captive Derelict 37775 | -5/Extension | System corruption reached 10% 37881 | -5/Extension | Rescued a captive Derelict 37881 | -5/Extension | Rescued a captive Derelict 37926 | -5/Extension | Discovered exit to Factory (range 10) 37930 | -5/Extension | Discovered new exit (range 6) 37949 | -5/Extension | Entered Cetus 37949 | -5/Cetus | Accompanied by 8 allies (A7) 37950 | -5/Cetus | Loaded intel: 24 machine locations 37954 | -5/Cetus | Acquired a Cetus Manufacturing Module code from A7 37975 | -5/Cetus | Spotted Cetus Guard 37975 | -5/Cetus | Spotted Cetus Guard 37976 | -5/Cetus | Spotted Cetus Guard 37978 | -5/Cetus | Spotted Cetus Guard 37982 | -5/Cetus | Allies destroyed Cetus Guard 37986 | -5/Cetus | Destroyed Cetus Guard 37986 | -5/Cetus | Destroyed Cetus Guard 37990 | -5/Cetus | Destroyed Cetus Guard 38107 | -5/Cetus | Started Cetus Manufacturing Module 38132 | -5/Cetus | Manufactured an Enhanced Grunt 38151 | -5/Cetus | Discovered new exit (range 15) 38157 | -5/Cetus | Manufactured an Enhanced Grunt 38182 | -5/Cetus | Manufactured an Enhanced Grunt 38207 | -5/Cetus | Manufactured an Enhanced Grunt 38232 | -5/Cetus | Manufactured an Enhanced Grunt 38316 | -5/Cetus | Spotted Cetus Guard 38316 | -5/Cetus | Spotted Cetus Guard 38317 | -5/Cetus | Spotted Cetus Guard 38318 | -5/Cetus | Destroyed Cetus Guard 38326 | -5/Cetus | Allies destroyed Cetus Guard 38337 | -5/Cetus | Destroyed Cetus Guard 38337 | -5/Cetus | Spotted Cetus Guard 38345 | -5/Cetus | Destroyed Cetus Guard 38364 | -5/Cetus | Discovered exit to Factory (range 15) 38375 | -5/Cetus | Met Revision 17 38469 | -5/Cetus | Entered Archives 38469 | -5/Archives | Accompanied by 10 allies (A7) 38470 | -5/Archives | Loaded intel: 8 machine locations 38535 | -5/Archives | Discovered new exit (range 16) 38759 | -5/Archives | Discovered exit to Factory (range 16) 38952 | -5/Archives | Entered Hub_04(d) 38952 | -5/Hub_04(d) | Accompanied by 7 allies 38953 | -5/Hub_04(d) | Loaded intel: 78 machine locations 39410 | -5/Hub_04(d) | Discovered exit to Factory (range 6) 39444 | -5/Hub_04(d) | Lost 4 allies 39468 | -5/Hub_04(d) | Destroyed 8 combat bots 39646 | -5/Hub_04(d) | Network Hub disabled 39701 | -5/Hub_04(d) | Entered Factory 39701 | -4/Factory | Evolved 2 slots: Power x2 39702 | -4/Factory | Loaded intel: 240 machine locations 39951 | -4/Factory | First assault squad dispatched 40497 | -4/Factory | Sucked down chute 40497 | -4/Factory | Entered Waste 40536 | -4/Waste | Spotted C-40 Crusher 40541 | -4/Waste | Destroyed C-40 Crusher 40558 | -4/Waste | Spotted C-40 Crusher 40560 | -4/Waste | Spotted C-40 Crusher 40563 | -4/Waste | Destroyed C-40 Crusher 40569 | -4/Waste | Spotted C-40 Crusher 40573 | -4/Waste | Spotted C-40 Crusher 40577 | -4/Waste | Destroyed C-40 Crusher 40584 | -4/Waste | Destroyed C-40 Crusher 40596 | -4/Waste | Destroyed C-40 Crusher 40637 | -4/Waste | Spotted C-40 Crusher 40662 | -4/Waste | Destroyed C-40 Crusher 40844 | -4/Waste | Discovered new exit (range 15) 40973 | -4/Waste | Entered Factory 40974 | -4/Factory | Loaded intel: 307 machine locations 41053 | -4/Factory | Identified exit to Upper Caves 41053 | -4/Factory | Identified exit to Armory 41290 | -4/Factory | Fabricated Exp. Core Analyzer? 41550 | -4/Factory | Garrison activated, responded to threat 41615 | -4/Factory | Destroyed 7 combat bots 41873 | -4/Factory | Destroyed 8 combat bots 41985 | -4/Factory | Spotted Striker 41986 | -4/Factory | Cargo convoy interrupted 41986 | -4/Factory | Spotted Executioner 41992 | -4/Factory | Destroyed Executioner 41999 | -4/Factory | System corruption reached 10% 42009 | -4/Factory | Destroyed Striker 42065 | -4/Factory | Lost 7 parts (2p1u4w) 42067 | -4/Factory | Destroyed 11 combat bots 42068 | -4/Factory | Found Adv. Kinecellerator 42100 | -4/Factory | Garrison activated, responded to threat 42223 | -4/Factory | First assault squad dispatched 42287 | -4/Factory | Destroyed 12 combat bots 42350 | -4/Factory | Destroyed 11 combat bots 42387 | -4/Factory | Entered Armory 42388 | -4/Armory | Loaded intel: 67 machine locations 42459 | -4/Armory | Identified System Mapper 42462 | -4/Armory | Attacked by bots powering up and referring to "LRC-V3" 42544 | -4/Armory | Destroyed 13 combat bots 42637 | -4/Armory | First assault squad dispatched 42770 | -4/Armory | Fabricated Enh. Armored Heavy Treads? 43202 | -4/Armory | Lost 3 parts (1n2u) 43220 | -4/Armory | Fabricated Enh. Armored Heavy Treads? 43615 | -4/Armory | Destroyed 7 combat bots 43758 | -4/Armory | Crushed by falling debris 43989 | -4/Armory | Intercept squad dispatched 44007 | -4/Armory | Spotted Tracker 44011 | -4/Armory | Destroyed Tracker 44030 | -4/Armory | Spotted Combat Programmer 44035 | -4/Armory | Destroyed Combat Programmer 44056 | -4/Armory | Lost 4 allies 44371 | -4/Armory | Spotted B-86 Titan 44378 | -4/Armory | Destroyed B-86 Titan 44430 | -4/Armory | High security lockdown imminent 44467 | -4/Armory | Destroyed 7 combat bots 44469 | -4/Armory | Discovered new exit (range 4) 44510 | -4/Armory | High security lockdown engaged 44643 | -4/Armory | Destroyed 19 combat bots 44769 | -4/Armory | Destroyed 20 combat bots 44778 | -4/Armory | Discovered new exit (range 2) 44782 | -4/Armory | Entered Lab 44784 | -4/Lab | Discovered new exit (range 9) 44803 | -4/Lab | Hidden lab's door opened automatically 44803 | -4/Lab | Sensor layout match revealed 44804 | -4/Lab | Gained access to the hidden lab's interior 44822 | -4/Lab | Found Alien Artifact 44869 | -4/Lab | Found Alien Artifact 44870 | -4/Lab | Identified Core Expander 44870 | -4/Lab | Installed Core Expander, added new Utility slot 44893 | -4/Lab | Found Alien Artifact 44894 | -4/Lab | Identified Integrated Mediator 44894 | -4/Lab | Installed Integrated Mediator, increased core attachment efficiency 44908 | -4/Lab | Found Alien Artifact 44969 | -4/Lab | Found Prototype Protection 44975 | -4/Lab | Found Prototype Energy Cannon 45007 | -4/Lab | Found Prototype Hackware 45219 | -4/Lab | Identified Warp Cannon 45224 | -4/Lab | Entered Research 45224 | -3/Research | Evolved 2 slots: Weapon x2 45225 | -3/Research | Loaded intel: 104 machine locations 45228 | -3/Research | Identified Hvy. Regenerative Plating 45424 | -3/Research | Revision forces began assault on 0b10 45469 | -3/Research | Met up with Revision 17++ 45515 | -3/Research | Spotted B-86 Titan 45924 | -3/Research | Research terminal network offline 46104 | -3/Research | Discovered new exit (range 5) 46318 | -3/Research | Identified exit to Research 46345 | -3/Research | Spotted Striker 46348 | -3/Research | Destroyed Striker 46375 | -3/Research | Spotted Striker 46383 | -3/Research | Destroyed Striker 46410 | -3/Research | Lost 6 allies 46422 | -3/Research | Spotted Striker 46494 | -3/Research | Spotted Striker 46495 | -3/Research | Spotted Striker 46500 | -3/Research | Destroyed Striker 46504 | -3/Research | Destroyed Striker 46576 | -3/Research | Destroyed 8 combat bots 46686 | -3/Research | Spotted Striker 46695 | -3/Research | Destroyed Striker 46731 | -3/Research | Spotted Executioner 46732 | -3/Research | Spotted Striker 46734 | -3/Research | Destroyed Executioner 46738 | -3/Research | Destroyed Striker 46792 | -3/Research | Found Exp. Core Analyzer 46812 | -3/Research | Discovered new exit (range 4) 46832 | -3/Research | Entered Testing 46833 | -3/Testing | Loaded intel: 64 machine locations 46902 | -3/Testing | Found Prototype Protection 47084 | -3/Testing | Found Prototype Ballistic Cannon 47084 | -3/Testing | Identified Perforator 47343 | -3/Testing | Identified Core Reset Matrix 47343 | -3/Testing | Identified Transdimensional Reconstructor 47343 | -3/Testing | Identified Quantum Router 47343 | -3/Testing | Identified SHELL Armor 47357 | -3/Testing | Found Exp. Target Analyzer 47433 | -3/Testing | Destroyed 7 combat bots 47440 | -3/Testing | Found Prototype Device 47440 | -3/Testing | Identified Exp. Hardlight Generator 47682 | -3/Testing | Spotted PX-GA0C7OJYWJ 47686 | -3/Testing | Destroyed PX-GA0C7OJYWJ 47899 | -3/Testing | Intercept squad dispatched 47918 | -3/Testing | Spotted Tracker 47919 | -3/Testing | Destroyed Tracker 47962 | -3/Testing | Spotted Combat Programmer 47967 | -3/Testing | Destroyed Combat Programmer 47988 | -3/Testing | Found Prototype Ballistic Gun 48088 | -3/Testing | Found Prototype Energy Cannon 48088 | -3/Testing | Identified Cld. Nova Cannon 48578 | -3/Testing | Spotted PX-H2GW6DT1KM 48677 | -3/Testing | Destroyed PX-H2GW6DT1KM 48923 | -3/Testing | Repaired Broken Centrium Heavy Treads 48943 | -3/Testing | Entered Research 48943 | -2/Research | Evolved 2 slots: Utility x2 48944 | -2/Research | Loaded intel: 116 machine locations 48996 | -2/Research | Identified exit to Quarantine 49213 | -2/Research | Fabricated Enh. Armored Heavy Treads? 49563 | -2/Research | Discovered new exit (range 11) 49574 | -2/Research | Spotted B-90 Cyclops 49588 | -2/Research | Destroyed B-90 Cyclops 49681 | -2/Research | Entered Quarantine 49682 | -2/Quarantine | Loaded intel: 81 machine locations 50042 | -2/Quarantine | Discovered new exit (range 10) 50161 | -2/Quarantine | Found Alien Artifact 50394 | -2/Quarantine | Identified Hyp. Multirail 50572 | -2/Quarantine | Spotted Fortress 50697 | -2/Quarantine | Destroyed Fortress 50729 | -2/Quarantine | Found Exp. Force Field 50744 | -2/Quarantine | Found Prototype Device 50744 | -2/Quarantine | Identified Exp. EM Disruption Field 50842 | -2/Quarantine | Intercept squad dispatched 50857 | -2/Quarantine | Spotted Tracker 50858 | -2/Quarantine | Spotted Tracker 50866 | -2/Quarantine | Destroyed Tracker 50875 | -2/Quarantine | Destroyed Tracker 50902 | -2/Quarantine | Spotted Combat Programmer 50902 | -2/Quarantine | Spotted Combat Programmer 50904 | -2/Quarantine | System corruption reached 10% 50922 | -2/Quarantine | Destroyed Combat Programmer 50922 | -2/Quarantine | Destroyed Combat Programmer 50976 | -2/Quarantine | First assault squad dispatched 51119 | -2/Quarantine | Discovered new exit (range 6) 51131 | -2/Quarantine | Entered Section 7 51132 | -2/Section 7 | Loaded intel: 164 machine locations 51182 | -2/Section 7 | Found Alien Artifact 51182 | -2/Section 7 | Identified Integrated Reactor 51182 | -2/Section 7 | Installed Integrated Reactor, increased core energy generation (+10) 51293 | -2/Section 7 | Found Alien Artifact 51293 | -2/Section 7 | Identified Integrated Dissipator 51293 | -2/Section 7 | Installed Integrated Dissipator, increased core heat dissipation (+20) 51409 | -2/Section 7 | Found Alien Artifact 51409 | -2/Section 7 | Identified Integrity Redistributor 51409 | -2/Section 7 | Used Integrity Redistributor, redistributed integrity from core (-254) 51568 | -2/Section 7 | Garrison activated, responded to threat 51701 | -2/Section 7 | Spotted S7 Guard 51748 | -2/Section 7 | Destroyed S7 Guard 51785 | -2/Section 7 | Found Alien Artifact 51820 | -2/Section 7 | Identified Integrated Thermoelectric Network 51820 | -2/Section 7 | Installed Integrated Thermoelectric Network, gained heat-energy exchange potential 51857 | -2/Section 7 | Spotted Alpha 7 51866 | -2/Section 7 | Spotted Alpha 7 51883 | -2/Section 7 | Destroyed Alpha 7 51904 | -2/Section 7 | Destroyed Alpha 7 51927 | -2/Section 7 | First assault squad dispatched 51946 | -2/Section 7 | Found Exp. Target Analyzer 51953 | -2/Section 7 | Found Prototype Ballistic Gun 52013 | -2/Section 7 | Spotted B-99 Colossus 52037 | -2/Section 7 | Destroyed B-99 Colossus 52051 | -2/Section 7 | Found Prototype Ballistic Gun 52062 | -2/Section 7 | Found Prototype Ballistic Gun 52063 | -2/Section 7 | Identified Multirail (x3) 52314 | -2/Section 7 | Found Alien Artifact 52314 | -2/Section 7 | Identified LRC Armor 52314 | -2/Section 7 | Installed LRC Armor, increased core integrity (+250) 52330 | -2/Section 7 | Found Alien Artifact 52330 | -2/Section 7 | Identified LRC Energy Well 52330 | -2/Section 7 | Installed LRC Energy Well, increased energy storage capacity (+250) 52333 | -2/Section 7 | Intercept squad dispatched 52333 | -2/Section 7 | Found Alien Artifact 52333 | -2/Section 7 | Identified LRC Matter Compressor 52333 | -2/Section 7 | Installed LRC Matter Compressor, increased matter storage capacity (+125) 52354 | -2/Section 7 | Spotted Tracker 52354 | -2/Section 7 | Destroyed Tracker 52355 | -2/Section 7 | Spotted Tracker 52360 | -2/Section 7 | Destroyed Tracker 52395 | -2/Section 7 | Found Exp. Targeting Computer 52397 | -2/Section 7 | Spotted Combat Programmer 52398 | -2/Section 7 | Spotted Combat Programmer 52404 | -2/Section 7 | Destroyed Combat Programmer 52404 | -2/Section 7 | Destroyed Combat Programmer 52996 | -2/Section 7 | Discovered new exit (range 7) 53088 | -2/Section 7 | Spotted Executioner 53088 | -2/Section 7 | Spotted Executioner 53098 | -2/Section 7 | Destroyed Executioner 53135 | -2/Section 7 | Destroyed Executioner 53191 | -2/Section 7 | Found Exp. Core Analyzer 53274 | -2/Section 7 | Intercept squad dispatched 53288 | -2/Section 7 | Spotted Tracker 53289 | -2/Section 7 | Spotted Tracker 53292 | -2/Section 7 | Destroyed Tracker 53295 | -2/Section 7 | Destroyed Tracker 53319 | -2/Section 7 | Spotted Combat Programmer 53322 | -2/Section 7 | Destroyed Combat Programmer 53326 | -2/Section 7 | Spotted Combat Programmer 53330 | -2/Section 7 | Destroyed Combat Programmer 53465 | -2/Section 7 | System corruption reached 30% 53547 | -2/Section 7 | Spotted Striker 53547 | -2/Section 7 | Spotted Striker 53574 | -2/Section 7 | Destroyed Striker 53577 | -2/Section 7 | Destroyed Striker 53604 | -2/Section 7 | Destroyed 7 combat bots 53743 | -2/Section 7 | High security lockdown imminent 53823 | -2/Section 7 | High security lockdown engaged 53956 | -2/Section 7 | Destroyed 15 combat bots 54069 | -2/Section 7 | Destroyed 13 combat bots 54083 | -2/Section 7 | Destroyed Investigator 54184 | -2/Section 7 | Destroyed Striker 54187 | -2/Section 7 | Destroyed Striker 54187 | -2/Section 7 | Spotted Executioner 54189 | -2/Section 7 | Destroyed Executioner 54206 | -2/Section 7 | Sterilization system engaged 54206 | -2/Section 7 | Non-combat units ordered to evacuate 54213 | -2/Section 7 | Destroyed 23 combat bots 54306 | -2/Section 7 | Combat units ordered to evacuate 54445 | -2/Section 7 | Spotted Executioner 54445 | -2/Section 7 | Spotted Executioner 54453 | -2/Section 7 | Destroyed Executioner 54456 | -2/Section 7 | Destroyed Executioner 54496 | -2/Section 7 | Found Adv. Kinecellerator 54506 | -2/Section 7 | Ambient heat levels rising (+10) 54534 | -2/Section 7 | Found Exp. Core Analyzer 54564 | -2/Section 7 | Spotted Striker 54564 | -2/Section 7 | Spotted Striker 54656 | -2/Section 7 | Ambient heat levels rising (+10) 54806 | -2/Section 7 | Ambient heat levels rising (+10) 54922 | -2/Section 7 | Entered Access 54922 | -1/Access | Evolved 2 slots: Utility x2 54923 | -1/Access | Loaded intel: 115 machine locations 55208 | -1/Access | First assault squad dispatched 55759 | -1/Access | Garrison activated, responded to threat 55862 | -1/Access | High security lockdown imminent 55901 | -1/Access | Destroyed 10 combat bots 55942 | -1/Access | High security lockdown engaged 56033 | -1/Access | Identified Subatomic Replicator 56033 | -1/Access | Used Subatomic Replicator to replicate Linked Autogun 56151 | -1/Access | Destroyed Striker 56156 | -1/Access | Destroyed Executioner 56156 | -1/Access | Destroyed Executioner 56177 | -1/Access | Destroyed 19 combat bots 56257 | -1/Access | Discovered new exit (range 10) 56309 | -1/Access | Destroyed Executioner 56309 | -1/Access | Spotted Executioner 56310 | -1/Access | Destroyed Executioner 56311 | -1/Access | Destroyed Executioner 56332 | -1/Access | Destroyed 8 combat bots 56356 | -1/Access | Destroyed Striker 56357 | -1/Access | Spotted Striker 56358 | -1/Access | Destroyed Striker 56382 | -1/Access | Destroyed 12 combat bots 56450 | -1/Access | Spotted Executioner 56452 | -1/Access | Destroyed Executioner 56473 | -1/Access | Destroyed 16 combat bots 56559 | -1/Access | Destroyed Executioner 56560 | -1/Access | Spotted Executioner 56562 | -1/Access | Destroyed Executioner 56584 | -1/Access | Destroyed Striker 56609 | -1/Access | Destroyed 20 combat bots 56700 | -1/Access | Destroyed Executioner 56809 | -1/Access | Destroyed Striker 56875 | -1/Access | Sterilization system engaged 56990 | -1/Access | Spotted Striker 57010 | -1/Access | Destroyed Striker 57015 | -1/Access | Destroyed Executioner 57015 | -1/Access | Destroyed Executioner 57020 | -1/Access | Destroyed Executioner 57020 | -1/Access | Destroyed Striker 57024 | -1/Access | Destroyed Executioner 57024 | -1/Access | Destroyed Executioner 57024 | -1/Access | Destroyed Striker 57028 | -1/Access | Spotted Striker 57028 | -1/Access | Destroyed Striker 57065 | -1/Access | Destroyed 27 combat bots 57175 | -1/Access | Ambient heat levels rising (+10) 57219 | -1/Access | Spotted B-99 Colossus 57237 | -1/Access | Destroyed B-99 Colossus 57250 | -1/Access | Spotted B-99 Colossus 57266 | -1/Access | Destroyed B-99 Colossus 57286 | -1/Access | Found Multirail 57293 | -1/Access | Found Multirail 57325 | -1/Access | Ambient heat levels rising (+10) 57335 | -1/Access | Found Multirail 57341 | -1/Access | Found Multirail 57419 | -1/Access | Entered Command 57420 | -1/Command | Loaded intel: 65 machine locations 57706 | -1/Command | First assault squad dispatched 57776 | -1/Command | High security lockdown imminent 57807 | -1/Command | Destroyed 12 combat bots 57856 | -1/Command | High security lockdown engaged 58010 | -1/Command | Destroyed 17 combat bots 58044 | -1/Command | Destroyed Executioner 58046 | -1/Command | Destroyed Investigator 58078 | -1/Command | Destroyed 15 combat bots 58227 | -1/Command | Destroyed 15 combat bots 58294 | -1/Command | Destroyed 15 combat bots 58422 | -1/Command | Destroyed Striker 58422 | -1/Command | Destroyed Striker 58446 | -1/Command | Spotted Executioner 58447 | -1/Command | Destroyed Executioner 58448 | -1/Command | Destroyed Executioner 58457 | -1/Command | Destroyed Executioner 58457 | -1/Command | Spotted Executioner 58458 | -1/Command | Destroyed Executioner 58487 | -1/Command | Destroyed 29 combat bots 58664 | -1/Command | Spotted Striker 58665 | -1/Command | Destroyed Striker 58666 | -1/Command | Spotted Executioner 58666 | -1/Command | Spotted Executioner 58667 | -1/Command | Destroyed Executioner 58669 | -1/Command | Destroyed Executioner 58670 | -1/Command | Destroyed Striker 58671 | -1/Command | Destroyed Striker 58682 | -1/Command | Spotted Striker 58682 | -1/Command | Destroyed Striker 58708 | -1/Command | Destroyed Striker 58709 | -1/Command | Spotted Striker 58709 | -1/Command | Destroyed Striker 58730 | -1/Command | Destroyed 32 combat bots 59009 | -1/Command | Spotted Striker 59009 | -1/Command | Spotted Executioner 59010 | -1/Command | Destroyed Striker 59011 | -1/Command | Destroyed Executioner 60627 | -1/Command | Destroyed 25 combat bots 60789 | -1/Command | Destroyed 9 combat bots 60952 | -1/Command | Destroyed 25 combat bots 61122 | -1/Command | Destroyed 16 combat bots 61275 | -1/Command | Destroyed 24 combat bots 61440 | -1/Command | System corruption reached 10% 61465 | -1/Command | Destroyed 29 combat bots 61563 | -1/Command | Destroyed 12 combat bots 61824 | -1/Command | Destroyed 18 combat bots 61943 | -1/Command | Destroyed 9 combat bots 62733 | -1/Command | Destroyed 30 combat bots 62919 | -1/Command | Destroyed 34 combat bots 63068 | -1/Command | Destroyed 11 combat bots 63261 | -1/Command | Destroyed 25 combat bots 63351 | -1/Command | Destroyed 15 combat bots 63604 | -1/Command | Destroyed 34 combat bots 63713 | -1/Command | Destroyed 7 combat bots 64423 | -1/Command | Spotted Combat Programmer 64425 | -1/Command | Spotted M Guard 64430 | -1/Command | Destroyed Combat Programmer 64433 | -1/Command | Spotted Combat Programmer 64444 | -1/Command | Destroyed M Guard 64450 | -1/Command | Spotted M Guard 64459 | -1/Command | Destroyed M Guard 64462 | -1/Command | Destroyed Combat Programmer 64462 | -1/Command | All MAIN.C guards destroyed 64470 | -1/Command | Lost 4 parts (3u1w) 64504 | -1/Command | Found Zero-point Reactor 64516 | -1/Command | Found Zero-point Reactor 64527 | -1/Command | Found Prototype Launcher 64527 | -1/Command | Identified Ragnarok Missile Launcher 64546 | -1/Command | Found Exp. Targeting Computer 64561 | -1/Command | Found Prototype Device 64561 | -1/Command | Identified AEGIS Remote Shield 64573 | -1/Command | Found AEGIS Remote Shield 65154 | -1/Command | Met MAIN.C 65165 | -1/Command | System corruption reached 30% 65167 | -1/Command | 0b10 Conduit disabled 65177 | -1/Command | Destroyed MAIN.C Shell 65180 | -1/Command | MAIN.C activated Command garrisons 65197 | -1/Command | Destroyed MAIN.C 65225 | -1/Command | Discovered new exit (range 41) 65225 | -1/Command | Discovered new exit (range 86) 65225 | -1/Command | Extracted map data and part IDs from MAIN.C's data core 65250 | -1/Command | Found Zero-point Reactor 65478 | -1/Command | Found Exp. System Purifier 65766 | -1/Command | Found Prototype Processor 65766 | -1/Command | Identified Exp. Melee Analysis Suite 65773 | -1/Command | Found Adv. Particle Accelerator 65807 | -1/Command | Found Zero-point Reactor 65811 | -1/Command | Found Zero-point Reactor 66133 | -1/Command | Found Adv. Kinecellerator 66811 | -1/Command | Found Exp. Core Analyzer 66816 | -1/Command | Found Exp. Core Analyzer 66931 | -1/Command | Found Corrupted Enh. Gamma Rifle 68694 | -1/Command | Warped through subspace to slip node 68694 | -1/Command | Discovered new exit (range 4) 68702 | -1/Command | Entered Access_0 68703 | -1/Access_0 | Loaded intel: 65 machine locations 68705 | -1/Access_0 | Met Architect 68706 | -1/Access_0 | Architect warped through subspace 68718 | -1/Access_0 | Destroyed A8 68748 | -1/Access_0 | Architect warped through subspace 68792 | -1/Access_0 | Architect warped through subspace 68798 | -1/Access_0 | Subspace Access Node disabled 68833 | -1/Access_0 | Architect warped through subspace 68874 | -1/Access_0 | Architect warped through subspace 68911 | -1/Access_0 | Spotted Enhanced Programmer 68917 | -1/Access_0 | Destroyed Enhanced Programmer 68921 | -1/Access_0 | Architect warped through subspace 68942 | -1/Access_0 | Spotted Enhanced Programmer 68953 | -1/Access_0 | Destroyed Enhanced Programmer 68957 | -1/Access_0 | Architect warped through subspace 68962 | -1/Access_0 | Spotted Enhanced Programmer 68968 | -1/Access_0 | Destroyed Enhanced Programmer 68989 | -1/Access_0 | Architect warped through subspace 68994 | -1/Access_0 | Spotted Enhanced Programmer 69001 | -1/Access_0 | Destroyed Enhanced Programmer 69012 | -1/Access_0 | Spotted Enhanced Programmer 69028 | -1/Access_0 | Destroyed Enhanced Programmer 69029 | -1/Access_0 | Architect warped through subspace 69049 | -1/Access_0 | Spotted Enhanced Programmer 69068 | -1/Access_0 | Architect warped through subspace 69075 | -1/Access_0 | Destroyed Enhanced Programmer 69107 | -1/Access_0 | Architect warped through subspace 69112 | -1/Access_0 | Subspace Access Node disabled 69134 | -1/Access_0 | Found Exp. Weapon Cycler 69137 | -1/Access_0 | Architect warped through subspace 69155 | -1/Access_0 | Spotted Enhanced Programmer 69179 | -1/Access_0 | Destroyed Enhanced Programmer 69186 | -1/Access_0 | Architect warped through subspace 69225 | -1/Access_0 | Architect warped through subspace 69249 | -1/Access_0 | Architect warped through subspace 69256 | -1/Access_0 | Subspace Access Node disabled 69277 | -1/Access_0 | Architect warped through subspace 69300 | -1/Access_0 | Architect warped through subspace 69327 | -1/Access_0 | Architect warped through subspace 69331 | -1/Access_0 | A6 warped into view 69345 | -1/Access_0 | Destroyed A6 69353 | -1/Access_0 | Architect warped through subspace 69377 | -1/Access_0 | Architect warped through subspace 69402 | -1/Access_0 | Core integrity fell below 50% 69418 | -1/Access_0 | Architect warped through subspace 69447 | -1/Access_0 | Architect warped through subspace 69477 | -1/Access_0 | Architect warped through subspace 69479 | -1/Access_0 | Spotted Enhanced Programmer 69491 | -1/Access_0 | Destroyed Enhanced Programmer 69498 | -1/Access_0 | Spotted Enhanced Programmer 69511 | -1/Access_0 | Destroyed Enhanced Programmer 69526 | -1/Access_0 | Architect warped through subspace 69551 | -1/Access_0 | Architect warped through subspace 69582 | -1/Access_0 | Architect warped through subspace 69585 | -1/Access_0 | Lost 4 parts (1n3w) 69601 | -1/Access_0 | Found Sigix Corpse 69613 | -1/Access_0 | Architect warped through subspace 69637 | -1/Access_0 | Destroyed A2 69640 | -1/Access_0 | Architect warped through subspace 69652 | -1/Access_0 | Extracted Singularity Gate Test 138-C access codes from A2's data core 69671 | -1/Access_0 | Architect warped through subspace 69711 | -1/Access_0 | Architect warped through subspace 69717 | -1/Access_0 | Singularity Gate disabled 69737 | -1/Access_0 | Architect warped through subspace 69763 | -1/Access_0 | Architect warped through subspace 69782 | -1/Access_0 | Architect warped through subspace 69805 | -1/Access_0 | Architect warped through subspace 69821 | -1/Access_0 | Architect warped through subspace 69839 | -1/Access_0 | Architect warped through subspace 69853 | -1/Access_0 | Architect warped through subspace 69873 | -1/Access_0 | Architect warped through subspace 69875 | -1/Access_0 | Subspace Access Node disabled 69889 | -1/Access_0 | Destroyed Architect 69922 | -1/Access_0 | Found Prototype Hackware 69923 | -1/Access_0 | Extracted unknown sensor trigger ID from Architect's data core 69930 | -1/Access_0 | Found Prototype Hackware 69934 | -1/Access_0 | Found Prototype Hackware 69937 | -1/Access_0 | Found Prototype Hackware 69941 | -1/Access_0 | Found Hpw. Transdimensional Reconstructor 69947 | -1/Access_0 | Found Prototype Protection 69950 | -1/Access_0 | Identified Centrium Linked Plating 69953 | -1/Access_0 | Identified Architect God Chip D (x2) 69955 | -1/Access_0 | Identified Architect God Chip A (x2) 70038 | -1/Access_0 | A5 warped into view 70048 | -1/Access_0 | Destroyed A5 71113 | -1/Access_0 | A4 warped into view 71128 | -1/Access_0 | Destroyed A4 71529 | -1/Access_0 | Spotted Enhanced Programmer 71537 | -1/Access_0 | Destroyed Enhanced Programmer 72449 | -1/Access_0 | A3 warped into view 72465 | -1/Access_0 | Destroyed A3 72493 | -1/Access_0 | Found Prototype Ballistic Gun 72493 | -1/Access_0 | Identified A3's Sniper Rifle 72504 | -1/Access_0 | Warped through subspace to slip node 72504 | -1/Access_0 | Discovered new exit (range 8) 72521 | *** | Establishing 0b11! Last Messages --------------- 72465_ System corrupted: Enh. Quantum Rifle failed to cycle. 72465_ Spectral Analyzer melted. 72465_ Exp. Cooling System melted. 72465_ Quantum Router melted. 72465_ Quantum Shading Machine melted. 72465_ A3: "How even..." 72465_ A3 destroyed. 72465_ HV Slug penetrates Wall. 72466_ Wall collapses. 72471_ >:HCAA>JD5GY%B#9Y FFSNDPKOHC%H 1FIP 72472_ Ended siege mode. 72492_ System corrupted: Energy discharge (-202). 72492_ Dropped Enh. Quantum Rifle. 72493_ Acquired Prototype Ballistic Gun. 72493_ Identified A3's Sniper Rifle. 72497_ Acquired Enh. Quantum Rifle. 72499_ Acquired 76 matter. 72504_ Warped through subspace, drawn to slip node. 72504_ EXIT=FOUND 72507_ System corrupted: Matter fused (-6). Map ----- +----------------------------------------------------+ | | | | | | | | | | | | | | | | | | | | | | | | | | | | | | | | | ?????????????????????????????????????????????????? | | ?????????????????????????????????????????????????? | | ?????????????????????????????????????????????????? | | ?????????????????????????????????????????????????? | | ?????????????????????????????????????????????????? | | ?????????????????????????????????????????????????? | | ????????????????????????###??????????????????????? | | ???????????????????????## ##?????????????????????? | | ???????????????????????# #?????????????????????? | | ???????????????????????# @ #?????????????????????? | | ??????????????????????## #?????????????????????? | | ??????????????????????# #?????????????????????? | | ??????????????????????# ##?????????????????????? | | ??????????????????????## #?????????????????????? | | ??????????????????????# #?????????????????????? | | ??????????????????????# ##?????????????????????? | | ??????????????????????# < #?????????????????????? | | ??????????????????????# ##?????????????????????? | | ??????????????????????## #??????????????????????? | | ???????????????????????####??????????????????????? | | ?????????????????????????????????????????????????? | | ?????????????????????????????????????????????????? | | ?????????????????????????????????????????????????? | | ?????????????????????????????????????????????????? | | ?????????????????????????????????????????????????? | | ?????????????????????????????????????????????????? | | ?????????????????????????????????????????????????? | | ?????????????????????????????????????????????????? | | ?????????????????????????????????????????????????? | | ?????????????????????????????????????????????????? | | ?????????????????????????????????????????????????? | | ?????????????????????????????????????????????????? | | ?????????????????????????????????????????????????? | | ?????????????????????????????????????????????????? | +----------------------------------------------------+ Best States ------------- Heat Dissipation 111 Energy Generation 95 Energy Capacity 1100 Matter Stores 425 Matter Capacity 425 Sight Range 16 Robot Scan Range 16 Terrain Scan Density 10 Jamming Range 16 Armor Coverage 1800 Resistance: TH 30 Weapon Cycling 30 Evasion (%) 55 Targeting Accuracy 12 Core Analysis 12 Armor Integrity Analysis 40 Recoil Reduction 4 Matter Filtering 50 Particle Charging 50 Kinecelleration 50 Salvage Targeting 3 Offensive Hacking 32 Item Schematics ----------------- Huge Storage Unit | -9/Materials | Hacked Adv. Weapon Cycler | -8/Materials | Scanalyzed Exp. Core Analyzer | -8/Materials | Scanalyzed Enh. Armored Heavy Treads | -5/Factory | Scanalyzed Arm. Heavy Treads | -5/Factory | Scanalyzed Exp. Cooling System | -3/Testing | Archive Cld. Antigrav System | -3/Testing | Archive Adv. Variable Charge Gun | -3/Testing | Archive Prc. Energy Filter | -3/Testing | Archive Diametric Drive | -2/Section 7 | Archive Imp. KE Penetrator | -2/Section 7 | Archive Exp. Heat Sink | -2/Section 7 | Archive Robot Schematics ------------------ A-15 Conveyor | -3/Testing | Archive R-10 Processor | -2/Section 7 | Archive G-73 Enforcer | -2/Section 7 | Archive Fabricated ------------ Exp. Core Analyzer | x1 | -4/Factory Enh. Armored Heavy Treads | x1 | -4/Armory Enh. Armored Heavy Treads | x1 | -4/Armory Enh. Armored Heavy Treads | x1 | -2/Research Alien Tech Used ----------------- Core Expander Integrated Mediator Integrated Reactor Integrated Dissipator Integrity Redistributor Integrated Thermoelectric Network LRC Armor LRC Energy Well LRC Matter Compressor Subatomic Replicator Transdimensional Reconstructor High-powered Transdimensional Reconstructor Achievements -------------- None Challenges ------------ None Game ------ Seed BattleForceCasing Manual? 0 Play Time 10:17:24 Cumulative 1932.0 hours Start 2024.03.28 @ 21:19:54 End 2024.04.28 @ 21:39:31 Sessions 8 Manual Loads 0 Difficulty Rogue Special Mode None Game No. 671 Rogue 671 Adventurer 0 Explorer 0 Win Type 1 Total 151 Types 30/14/65/7/1/2/30/1/1 Lore% 97 Gallery% 96 Achievement% 88 Wizard Run 0 Options --------- Layout 0 ASCII 0 Keyboard 0 Movement Numpad Keybinds 0 Fullscreen 2 Font 18/SmallcapsGlow Map View 76x50 Zoom Use 0% Tactical HUD 1 Map Filters NONE Filters NONE Steam 1 RUN: 060cc2f4-83ec-46cd-a573-d4da8a356002